Workbook

Sheet Revision List
A2: ABC HD 2b/3 Truck Company - 2022 CAFC/GHG Model Year Report
A4: Revision List
A7: Revision Date | C7: Spread sheet name | E7: Description of Revision

Sheet CoverLetter

Sheet Summary
A1: Purpose and Scope of this Guidance Document
A2: This document was prepared by EPA's Office of Transportation and Air Quality (OTAQ). It is intended to aid regulated parties in reporting fleet average Greenhouse Gas (GHG), Corporate Average Fuel Consumption (CAFC) values and calculating AB&T fleet average credits for heavy-duty class 2b and 3 vehicles, ref. 40 CFR 86.1819-14 and 49 CFR 535.5(a), 535.6(a), 535.7. It contains EPA's recommended format for manufacturers to report to EPA their end-of-year GHG and CAFC calculations, credits and other information with respect to the implementation of the Phase 2 Greenhouse Gas Emissions and Fuel Efficiency Standards for Heavy-Duty Class 2b and 3 Pickup Trucks and Vans, ref. 81 FR 73478, October 25, 2016, including any subsequent revisions to those requirements. The use of this document is purely optional. This document does not in any way alter or waive the requirements in EPA regulations. Although the calculations and formulas provided in this document are intended to assist manufacturers in the implementation of EPA regulations, this document does not establish or change the legal rights or obligations of manufacturers or others in complying with EPA regulations, including 40 CFR 86.1865-12. If an error or other discrepancy is found in this document, including the calculation formulas, please contact your EPA certification team member. The regulations take precedence.
B4: Example Final Model Year HD 2b/3 Pickup & Van CAFC/GHG Credit Summary Report
B5: Manufacturer: ____ABC HD 2b/3 Truck Company______
B6: CO2 Credit Summary:
B7: Fleet | C7: Model Year | D7: Target CO2 Standard (g/mile) | E7: Manufacturer CO2 (g/mile) | F7: U.S. Production Volume (units) | G7: 2021-2027MY Advanced Technology Credit Multiplier | H7: CO2 150K Credit (Deficit) (Mg) | I7: CO2 Credits Required for N2O Compliance (Mg) | J7: CO2 Credits Required for CH4 Compliance (Mg) | K7: CO2 Innovative Technology Credits (Mg) | L7: Total CO2 Credits (Mg) | M7: Date Credits Were Earned | N7: Comments
B8: Conventional | C8: 2022 | D8: ='Fleet std calculation'!D12 -> 470 | E8: ='Fleet ave calculation'!D9 -> 456 | F8: ='Fleet std calculation'!C12 -> 79920 | G8: 1 | H8: =ASTM((D8-E8)*F8*G8*150000/1000000,0) -> 167832 | I8: ='Fleet ave calculation'!AE14 -> 0 | J8: ='Fleet ave calculation'!AF14 -> 0 | K8: ='Fleet ave calculation'!AH14 -> 0 | L8: =SUM(H8:K8) -> 167832 | M8: 2022-12-31
B9: Advanced Technology -EV | C9: 2022 | D9: ='Adv Tech std calcs'!E12 -> 431 | E9: ='Adv Tech Fleet ave calcs'!E9 -> 0 | F9: ='Adv Tech std calcs'!D12 -> 46944 | G9: =IF(C9>2027,1,4.5) -> 4.5 | H9: =ASTM((D9-E9)*F9*G9*150000/1000000,0) -> 13657183 | I9: ='Adv Tech Fleet ave calcs'!AG16 -> 0 | J9: ='Adv Tech Fleet ave calcs'!AH16 -> 0 | K9: ='Adv Tech Fleet ave calcs'!AJ16 -> 0 | L9: =SUM(H9:K9) -> 13657183 | M9: 2022-12-31
B10: Advanced Technology - PHEV | C10: 2022 | D10: ='Adv Tech std calcs'!E13 -> 483 | E10: ='Adv Tech Fleet ave calcs'!E10 -> 51 | F10: ='Adv Tech std calcs'!D13 -> 29432 | G10: =IF(C10>2027,1,3.5) -> 3.5 | H10: =ASTM((D10-E10)*F10*G10*150000/1000000,0) -> 6675178 | I10: ='Adv Tech Fleet ave calcs'!AG17 -> 0 | J10: ='Adv Tech Fleet ave calcs'!AH17 -> 0 | K10: ='Adv Tech Fleet ave calcs'!AJ17 -> 0 | L10: =SUM(H10:K10) -> 6675178 | M10: 2022-12-31
B11: Advanced Technology - FCV | C11: 2022 | D11: ='Adv Tech std calcs'!E14 -> 496 | E11: ='Adv Tech Fleet ave calcs'!E11 -> 0 | F11: ='Adv Tech std calcs'!D14 -> 2072 | G11: =IF(C11>2027,1,5.5) -> 5.5 | H11: =ASTM((D11-E11)*F11*G11*150000/1000000,0) -> 847862 | I11: ='Adv Tech Fleet ave calcs'!AG18 -> 0 | J11: ='Adv Tech Fleet ave calcs'!AH18 -> 0 | K11: ='Adv Tech Fleet ave calcs'!AJ18 -> 0 | L11: =SUM(H11:K11) -> 847862 | M11: 2022-12-31
K12: Grand Total CO2 Credits for the Model Year: | L12: =SUM(L8:L11) -> 21348055 | M12: 2022-12-31
B14: Fuel Consumption (FC) Credit Summary:
B15: Fleet | C15: Model Year | D15: Target FC Standard (gal/100 mile) | E15: Manufacturer FC (gal/100 mile) | F15: U.S. Production Volume (units) | G15: 2021-2027MY Advanced Technology Credit Multiplier | H15: FC 150K Credit (Deficit) (gal) | I15: FC Innovative Technology Credits (gal) | J15: Total FC Credits (gal) | K15: Date Credits Were Earned | L15: Comments
B16: Conventional | C16: 2022 | D16: ='Fleet std calculation'!E12 -> 5.268 | E16: ='Fleet ave calculation'!E9 -> 5.116 | F16: ='Fleet std calculation'!C12 -> 79920 | G16: 1 | H16: =ASTM((D16-E16)*F16*G16/100*150000,0) -> 18221760 | I16: ='Fleet ave calculation'!AJ14 -> 0 | J16: =SUM(H16:I16) -> 18221760 | K16: 2022-12-31
B17: Advanced Technology -EV | C17: 2022 | D17: ='Adv Tech std calcs'!F12 -> 4.229 | E17: ='Adv Tech Fleet ave calcs'!F9 -> 0 | F17: ='Adv Tech std calcs'!D12 -> 46944 | G17: =IF(C17>2027,1,4.5) -> 4.5 | H17: =ASTM((D17-E17)*F17*G17/100*150000,0) -> 1340051688 | I17: ='Adv Tech Fleet ave calcs'!AL16 -> 0 | J17: =SUM(H17:I17) -> 1340051688 | K17: 2022-12-31
B18: Advanced Technology - PHEV | C18: 2022 | D18: ='Adv Tech std calcs'!F13 -> 5.435 | E18: ='Adv Tech Fleet ave calcs'!F10 -> 0.574 | F18: ='Adv Tech std calcs'!D13 -> 29432 | G18: =IF(C18>2027,1,3.5) -> 3.5 | H18: =ASTM((D18-E18)*F18*G18/100*150000,0) -> 751111998 | I18: ='Adv Tech Fleet ave calcs'!AL17 -> 0 | J18: =SUM(H18:I18) -> 751111998 | K18: 2022-12-31
B19: Advanced Technology - FCV | C19: 2022 | D19: ='Adv Tech std calcs'!F14 -> 4.868 | E19: ='Adv Tech Fleet ave calcs'!F11 -> 0 | F19: ='Adv Tech std calcs'!D14 -> 2072 | G19: =IF(C19>2027,1,5.5) -> 5.5 | H19: =ASTM((D19-E19)*F19*G19/100*150000,0) -> 83213592 | I19: ='Adv Tech Fleet ave calcs'!AL18 -> 0 | J19: =SUM(H19:I19) -> 83213592 | K19: 2022-12-31
E20: Total: | F20: =SUM(F16:F19) -> 158368 | I20: Grand Total FC Credits for the Model Year: | J20: =SUM(J16:J19) -> 2192599038 | K20: 2022-12-31
B22: Minimum data requirements:
B23: Fleet | C23: Number of subconfig-urations | D23: Number of actual vehicles tested | E23: Rate of production volume by configuratilon represented by test data (%) --- [Must be > 90% per 40 CFR 86.1819-14(d)(9)(iii)]
B24: Conventional | C24: ='Fleet ave calculation'!F9 -> 17 | D24: ='Fleet ave calculation'!G9 -> 13 | E24: ='Fleet ave calculation'!H9 -> 1
B25: Advanced Technology -EV | C25: ='Adv Tech Fleet ave calcs'!G9 -> 3 | D25: ='Adv Tech Fleet ave calcs'!H9 -> 0 | E25: ='Adv Tech Fleet ave calcs'!I9 -> 1
B26: Advanced Technology - PHEV | C26: ='Adv Tech Fleet ave calcs'!G10 -> 4 | D26: ='Adv Tech Fleet ave calcs'!H10 -> 1 | E26: ='Adv Tech Fleet ave calcs'!I10 -> 1
B27: Advanced Technology - FCV | C27: ='Adv Tech Fleet ave calcs'!G11 -> 6 | D27: ='Adv Tech Fleet ave calcs'!H11 -> 0 | E27: ='Adv Tech Fleet ave calcs'!I11 -> 1

Sheet CFR Constants (hidden)
B1: Table 3 of § 86.1819-14
B2: CO2 Constants | D2: FC Constants
B3: A | C3: B | D3: C | E3: D
A4: 2021_Spark Ignition | B4: 0.0429 | C4: 331 | D4: 0.0004827 | E4: 3.725
A5: 2022_Spark Ignition | B5: 0.0418 | C5: 322 | D5: 0.0004703 | E5: 3.623
A6: 2023_Spark Ignition | B6: 0.0408 | C6: 314 | D6: 0.0004591 | E6: 3.533
A7: 2024_Spark Ignition | B7: 0.0398 | C7: 306 | D7: 0.0004478 | E7: 3.443
A8: 2025_Spark Ignition | B8: 0.0388 | C8: 299 | D8: 0.0004366 | E8: 3.364
A9: 2026_Spark Ignition | B9: 0.0378 | C9: 291 | D9: 0.0004253 | E9: 3.274
A10: 2027_Spark Ignition | B10: 0.0369 | C10: 284 | D10: 0.0004152 | E10: 3.196
A11: 2028_Spark Ignition | B11: =1/0 ->  | C11: =1/0 -> 
A12: 2029_Spark Ignition | B12: =1/0 -> 
A13: 2030_Spark Ignition | B13: =1/0 -> 
A14: 2031_Spark Ignition | B14: =1/0 -> 
A15: 2032_Spark Ignition | B15: =1/0 -> 
A16: 2021_Compression Ignition | B16: 0.0406 | C16: 312 | D16: 0.0003988 | E16: 3.065
A17: 2022_Compression Ignition | B17: 0.0395 | C17: 304 | D17: 0.000388 | E17: 2.986
A18: 2023_Compression Ignition | B18: 0.0386 | C18: 297 | D18: 0.0003792 | E18: 2.917
A19: 2024_Compression Ignition | B19: 0.0376 | C19: 289 | D19: 0.0003694 | E19: 2.839
A20: 2025_Compression Ignition | B20: 0.0367 | C20: 282 | D20: 0.0003605 | E20: 2.77
A21: 2026_Compression Ignition | B21: 0.0357 | C21: 275 | D21: 0.0003507 | E21: 2.701
A22: 2027_Compression Ignition | B22: 0.0348 | C22: 268 | D22: 0.0003418 | E22: 2.633
A23: 2028_Compression Ignition | B23: =1/0 -> 
A24: 2029_Compression Ignition
A25: 2030_Compression Ignition
A26: 2031_Compression Ignition
A27: 2032_Compression Ignition
A28: 2021_EV/FCV-only | B28: 0.0406 | C28: 312 | D28: 0.0003988 | E28: 3.065
A29: 2022_EV/FCV-only | B29: 0.0395 | C29: 304 | D29: 0.000388 | E29: 2.986
A30: 2023_EV/FCV-only | B30: 0.0386 | C30: 297 | D30: 0.0003792 | E30: 2.917
A31: 2024_EV/FCV-only | B31: 0.0376 | C31: 289 | D31: 0.0003694 | E31: 2.839
A32: 2025_EV/FCV-only | B32: 0.0367 | C32: 282 | D32: 0.0003605 | E32: 2.77
A33: 2026_EV/FCV-only | B33: 0.0357 | C33: 275 | D33: 0.0003507 | E33: 2.701
A34: 2027_EV/FCV-only | B34: 0.0348 | C34: 268 | D34: 0.0003418 | E34: 2.633
A35: 2028_EV/FCV-only | B35: =1/0 -> 
A36: 2029_EV/FCV-only
A37: 2030_EV/FCV-only
A38: 2031_EV/FCV-only
A39: 2032_EV/FCV-only

Sheet Fleet std calculation
B1: Purpose and Scope of this Guidance Document
I2: This document was prepared by EPA's Office of Transportation and Air Quality (OTAQ). It is intended to aid regulated parties in reporting fleet average Greenhouse Gas (GHG), Corporate Average Fuel Consumption (CAFC) values and calculating AB&T fleet average credits for heavy-duty class 2b and 3 vehicles, ref. 40 CFR 86.1819-14 and 49 CFR 535.5(a), 535.6(a), 535.7. It contains EPA's recommended format for manufacturers to report to EPA their end-of-year GHG and CAFC calculations, credits and other information with respect to the implementation of the Phase 2 Greenhouse Gas Emissions and Fuel Efficiency Standards for Heavy-Duty Class 2b and 3 Pickup Trucks and Vans, ref. 81 FR 73478, October 25, 2016, including any subsequent revisions to those requirements. The use of this document is purely optional. This document does not in any way alter or waive the requirements in EPA regulations. Although the calculations and formulas provided in this document are intended to assist manufacturers in the implementation of EPA regulations, this document does not establish or change the legal rights or obligations of manufacturers or others in complying with EPA regulations, including 40 CFR 86.1865-12. If an error or other discrepancy is found in this document, including the calculation formulas, please contact your EPA certification team member. The regulations take precedence.
B4: Final HD Class 2b/3 CAFC/GHG Model Year Report - CO2 and FC Fleet Average Standards Calculations
B5: Manufacturer: | C5: ABC HD 2b/3 Truck Co.
B6: Model Year: | C6: 2022 | D6: =IF(C6='Fleet ave calculation'!C6,"","ERROR--Model Year of Conventional vehicle Fleet Standard calculation tab doesn't match the Model Year of the Conventional Vehicle Fleet Average Calculation tab;") -> 
B7: Report: | C7: HD 2b/3 Conventional Fleet Final Model Year Report
B8: EPA Phase 2 GHG Standards: | C8: ref. 40 CFR 86.1819-14(a)(2) or 86.1819-14(k)(4)(iii) Table 3;
B9: NHTSA Phase 2 FC Standards: | C9: ref. 49 CFR 535.5(a)(2)(ii) Table 6
C11: AA. Total production volume | D11: CC. Fleet target CO2 (gpm) | E11: FF. Fleet target FC (gal/100 mile)
C12: =IF($C$6>2023, SUM(Z17:AA17), SUM(Z17:AB17)) -> 79920 | D12: =ASTM(AC17/C12,0) -> 470 | E12: =ASTM(AD17/C12,3) -> 5.268 | F12: =IF(C12='Fleet ave calculation'!C9,"","ERROR--Total production volume of Fleet std calculation tab doesn't match the Total production volume of the Fleet ave Calculation tab;") -> 
B14: Vehicle & Subconfiguration Information | M14: CO2 and FC Target Standard Information | Z14: Production Volumes | AE14: AE. Comments
B15: B. Truck Line Name & Description | C15: C. Test Group | D15: D. Engine Code | E15: E. Base level | F15: F. Config. Group | G15: G. Sub- config. Group Name | H15: H. 2 or 4 Wheel Drive | I15: I. Engine | J15: J. Trans Class | K15: K. Final Drive Ratio | L15: L. Road Load HP | M15: M. GVWR | N15: N. Curb Weight | O15: O. GCWR | P15: P. ETW (ALVW) | Q15: Q. Work Factor | R15: R. Spark Ignition or Compression Ignition | S15: S. A Target Coef | T15: T. B Target Coef | U15: U. CO2 Target Standard | V15: V. C Target Coef | W15: W. D Target Coef | X15: X. Conversion Factor | Y15: Y. FC Target Standard | Z15: Z. Production volume under Production volume under 40 CFR 86.1819-14(a) | AA15: AA. Production volume under 40 CFR 86.1819-14(j) (incomplete & sister vehicles) | AB15: AB. Loose Engine production volume under 86.1819-14(k)(8) (cannot be used after 2023MY) | AC15: AC. Vol x Target CO2 Standard | AD15: AD. Vol x Target FC Standard
M16: lbs. | N16: lbs. | O16: lbs. | P16: lbs. | U16: gpm | X16: gCO2/gal | Y16: gal/100 miles
Z17: =SUM(Z18:Z42) -> 79920 | AA17: =SUM(AA18:AA42) -> 0 | AB17: =IF($C$6>2023,0,SUM(AB18:AB42)) -> 0 | AC17: =SUM(AC18:AC42) -> 37531472 | AD17: =SUM(AD18:AD42) -> 421013.096
B18: 1500 Cargo VAN Trim Level A | C18: NXXXD02.5XXX | D18: AA5 | E18: 1 | F18: 1 | G18: 1 | H18: 2wd | I18: 2.5L | J18: L6 | K18: 3.357 | L18: 22.4 | M18: 8750 | N18: 5836 | O18: 13400 | P18: 7500 | Q18: =ASTM(0.75*(M18-N18+IF(H18="4wd",500, 0))+0.25*(O18-M18),0) -> 3348 | R18: Spark Ignition | S18: =VLOOKUP(CONCATENATE($C$6,"_",$R18),'CFR Constants'!$A$4:$E$27,2,FALSE) -> 0.0418 | T18: =VLOOKUP(CONCATENATE($C$6,"_",$R18),'CFR Constants'!$A$4:$E$27,3,FALSE) -> 322 | U18: =IF(OR(ISERROR(S18),ISERROR(Q18),ISERROR(T18)),1/0,ASTM(S18*Q18+T18,0)) -> 462 | V18: =VLOOKUP(CONCATENATE($C$6,"_",$R18),'CFR Constants'!$A$4:$E$27,4,FALSE) -> 0.0004703 | W18: =VLOOKUP(CONCATENATE($C$6,"_",$R18),'CFR Constants'!$A$4:$E$27,5,FALSE) -> 3.623 | X18: =IF(R18="","",IF(R18="Spark Ignition",8887,10180)) -> 8887 | Y18: =IF(OR(ISERROR(V18),ISERROR(Q18),ISERROR(W18)),1/0,ASTM(V18*Q18+W18,3)) -> 5.198 | Z18: 18736 | AA18: 0 | AB18: 0 | AC18: =IF(R18="","",IF($C$6>2023, SUM(Z18:AA18)*U18,SUM(Z18:AB18)*U18)) -> 8656032 | AD18: =IF(R18="","",IF($C$6>2023, SUM(Z18:AA18)*Y18,SUM(Z18:AB18)*Y18)) -> 97389.728
B19: 2500 Cargo VAN Trim Level A | H19: 2wd | I19: 2.5L | J19: L6 | K19: 3.357 | L19: 22.4 | M19: 9100 | N19: 5832 | O19: 13400 | P19: 7500 | Q19: =ASTM(0.75*(M19-N19+IF(H19="4wd",500, 0))+0.25*(O19-M19),0) -> 3526 | R19: Spark Ignition | S19: =VLOOKUP(CONCATENATE($C$6,"_",$R19),'CFR Constants'!$A$4:$E$27,2,FALSE) -> 0.0418 | T19: =VLOOKUP(CONCATENATE($C$6,"_",$R19),'CFR Constants'!$A$4:$E$27,3,FALSE) -> 322 | U19: =IF(OR(ISERROR(S19),ISERROR(Q19),ISERROR(T19)),1/0,ASTM(S19*Q19+T19,0)) -> 469 | V19: =VLOOKUP(CONCATENATE($C$6,"_",$R19),'CFR Constants'!$A$4:$E$27,4,FALSE) -> 0.0004703 | W19: =VLOOKUP(CONCATENATE($C$6,"_",$R19),'CFR Constants'!$A$4:$E$27,5,FALSE) -> 3.623 | X19: 8887 | Y19: =IF(OR(ISERROR(V19),ISERROR(Q19),ISERROR(W19)),1/0,ASTM(V19*Q19+W19,3)) -> 5.281 | Z19: 7928 | AA19: 0 | AB19: 0 | AC19: =IF(R19="","",IF($C$6>2023, SUM(Z19:AA19)*U19,SUM(Z19:AB19)*U19)) -> 3718232 | AD19: =IF(R19="","",IF($C$6>2023, SUM(Z19:AA19)*Y19,SUM(Z19:AB19)*Y19)) -> 41867.768
B20: 2500 Cargo VAN Trim Level B | H20: 2wd | I20: 2.5L | J20: L6 | K20: 3.357 | L20: 22.4 | M20: 9100 | N20: 5992 | O20: 13400 | P20: 7500 | Q20: =ASTM(0.75*(M20-N20+IF(H20="4wd",500, 0))+0.25*(O20-M20),0) -> 3406 | R20: Spark Ignition | S20: =VLOOKUP(CONCATENATE($C$6,"_",$R20),'CFR Constants'!$A$4:$E$27,2,FALSE) -> 0.0418 | T20: =VLOOKUP(CONCATENATE($C$6,"_",$R20),'CFR Constants'!$A$4:$E$27,3,FALSE) -> 322 | U20: =IF(OR(ISERROR(S20),ISERROR(Q20),ISERROR(T20)),1/0,ASTM(S20*Q20+T20,0)) -> 464 | V20: =VLOOKUP(CONCATENATE($C$6,"_",$R20),'CFR Constants'!$A$4:$E$27,4,FALSE) -> 0.0004703 | W20: =VLOOKUP(CONCATENATE($C$6,"_",$R20),'CFR Constants'!$A$4:$E$27,5,FALSE) -> 3.623 | X20: 8887 | Y20: =IF(OR(ISERROR(V20),ISERROR(Q20),ISERROR(W20)),1/0,ASTM(V20*Q20+W20,3)) -> 5.225 | Z20: 1800 | AA20: 0 | AB20: 0 | AC20: 835200 | AD20: 9405
B21: 2500 Cargo VAN Trim Level A (Hi roof) | G21: 2 | H21: 2wd | I21: 2.5L | J21: L6 | K21: 3.357 | L21: 24 | M21: 9100 | N21: =2*P21-M21 -> 5900 | O21: 13400 | P21: 7500 | Q21: =ASTM(0.75*(M21-N21+IF(H21="4wd",500, 0))+0.25*(O21-M21),0) -> 3475 | R21: Spark Ignition | S21: =VLOOKUP(CONCATENATE($C$6,"_",$R21),'CFR Constants'!$A$4:$E$27,2,FALSE) -> 0.0418 | T21: =VLOOKUP(CONCATENATE($C$6,"_",$R21),'CFR Constants'!$A$4:$E$27,3,FALSE) -> 322 | U21: =IF(OR(ISERROR(S21),ISERROR(Q21),ISERROR(T21)),1/0,ASTM(S21*Q21+T21,0)) -> 467 | V21: =VLOOKUP(CONCATENATE($C$6,"_",$R21),'CFR Constants'!$A$4:$E$27,4,FALSE) -> 0.0004703 | W21: =VLOOKUP(CONCATENATE($C$6,"_",$R21),'CFR Constants'!$A$4:$E$27,5,FALSE) -> 3.623 | X21: 8887 | Y21: =IF(OR(ISERROR(V21),ISERROR(Q21),ISERROR(W21)),1/0,ASTM(V21*Q21+W21,3)) -> 5.257 | Z21: 13872 | AA21: 0 | AB21: 0 | AC21: 6478224 | AD21: 72925.104 | AE21: Grouped subconfigs & calc'd curb wt = (2 x ETW - GVWR) per 40 CFR 86.1819-14(a)(4)(i);
B22: 2500 Cargo VAN Trim Level B (Hi roof) | H22: 2wd | I22: 2.5L | J22: L6 | K22: 3.357 | L22: 24 | M22: 9100 | N22: =2*P22-M22 -> 5900 | O22: 13400 | P22: 7500 | Q22: =ASTM(0.75*(M22-N22+IF(H22="4wd",500, 0))+0.25*(O22-M22),0) -> 3475 | R22: Spark Ignition | S22: =VLOOKUP(CONCATENATE($C$6,"_",$R22),'CFR Constants'!$A$4:$E$27,2,FALSE) -> 0.0418 | T22: =VLOOKUP(CONCATENATE($C$6,"_",$R22),'CFR Constants'!$A$4:$E$27,3,FALSE) -> 322 | U22: =IF(OR(ISERROR(S22),ISERROR(Q22),ISERROR(T22)),1/0,ASTM(S22*Q22+T22,0)) -> 467 | V22: =VLOOKUP(CONCATENATE($C$6,"_",$R22),'CFR Constants'!$A$4:$E$27,4,FALSE) -> 0.0004703 | W22: =VLOOKUP(CONCATENATE($C$6,"_",$R22),'CFR Constants'!$A$4:$E$27,5,FALSE) -> 3.623 | X22: 8887 | Y22: =IF(OR(ISERROR(V22),ISERROR(Q22),ISERROR(W22)),1/0,ASTM(V22*Q22+W22,3)) -> 5.257 | Z22: 944 | AA22: 0 | AB22: 0 | AC22: 440848 | AD22: 4962.608 | AE22: Grouped subconfigs & calc'd curb wt = (2 x ETW - GVWR) per 40 CFR 86.1819-14(a)(4)(i);
B23: 3500 Passenger VAN Trim Level A | G23: 3 | H23: 2wd | I23: 2.5L | J23: L6 | K23: 3.357 | L23: 22.9 | M23: 9520 | N23: =2*P23-M23 -> 6480 | O23: 13400 | P23: 8000 | Q23: =ASTM(0.75*(M23-N23+IF(H23="4wd",500, 0))+0.25*(O23-M23),0) -> 3250 | R23: Spark Ignition | S23: =VLOOKUP(CONCATENATE($C$6,"_",$R23),'CFR Constants'!$A$4:$E$27,2,FALSE) -> 0.0418 | T23: =VLOOKUP(CONCATENATE($C$6,"_",$R23),'CFR Constants'!$A$4:$E$27,3,FALSE) -> 322 | U23: =IF(OR(ISERROR(S23),ISERROR(Q23),ISERROR(T23)),1/0,ASTM(S23*Q23+T23,0)) -> 458 | V23: =VLOOKUP(CONCATENATE($C$6,"_",$R23),'CFR Constants'!$A$4:$E$27,4,FALSE) -> 0.0004703 | W23: =VLOOKUP(CONCATENATE($C$6,"_",$R23),'CFR Constants'!$A$4:$E$27,5,FALSE) -> 3.623 | X23: 8887 | Y23: =IF(OR(ISERROR(V23),ISERROR(Q23),ISERROR(W23)),1/0,ASTM(V23*Q23+W23,3)) -> 5.151 | Z23: 3664 | AA23: 0 | AB23: 0 | AC23: 1678112 | AD23: 18873.264 | AE23: Grouped subconfigs & calc'd curb wt = (2 x ETW - GVWR) per 40 CFR 86.1819-14(a)(4)(i);
B24: 2500 Cargo VAN Trim Level A (Hi roof) | C24: NXXXD03.6YYY | D24: AA6 | E24: 2 | F24: 2 | G24: 4 | H24: 2wd | I24: 3.6L | J24: L8 | K24: 3.357 | L24: 22.4 | M24: 9100 | N24: =2*P24-M24 -> 5900 | O24: 16000 | P24: 7500 | Q24: =ASTM(0.75*(M24-N24+IF(H24="4wd",500, 0))+0.25*(O24-M24),0) -> 4125 | R24: Spark Ignition | S24: =VLOOKUP(CONCATENATE($C$6,"_",$R24),'CFR Constants'!$A$4:$E$27,2,FALSE) -> 0.0418 | T24: =VLOOKUP(CONCATENATE($C$6,"_",$R24),'CFR Constants'!$A$4:$E$27,3,FALSE) -> 322 | U24: =IF(OR(ISERROR(S24),ISERROR(Q24),ISERROR(T24)),1/0,ASTM(S24*Q24+T24,0)) -> 494 | V24: =VLOOKUP(CONCATENATE($C$6,"_",$R24),'CFR Constants'!$A$4:$E$27,4,FALSE) -> 0.0004703 | W24: =VLOOKUP(CONCATENATE($C$6,"_",$R24),'CFR Constants'!$A$4:$E$27,5,FALSE) -> 3.623 | X24: 8887 | Y24: =IF(OR(ISERROR(V24),ISERROR(Q24),ISERROR(W24)),1/0,ASTM(V24*Q24+W24,3)) -> 5.563 | Z24: 1656 | AA24: 0 | AB24: 0 | AC24: 818064 | AD24: 9212.328 | AE24: Grouped subconfigs & calc'd curb wt = (2 x ETW - GVWR) per 40 CFR 86.1819-14(a)(4)(i);
B25: 2500 Cargo VAN Trim Level A (Hi roof) | G25: 5 | H25: 2wd | I25: 3.6L | J25: L8 | K25: 3.357 | L25: 24 | M25: 9100 | N25: =2*P25-M25 -> 5900 | O25: 16000 | P25: 7500 | Q25: =ASTM(0.75*(M25-N25+IF(H25="4wd",500, 0))+0.25*(O25-M25),0) -> 4125 | R25: Spark Ignition | S25: =VLOOKUP(CONCATENATE($C$6,"_",$R25),'CFR Constants'!$A$4:$E$27,2,FALSE) -> 0.0418 | T25: =VLOOKUP(CONCATENATE($C$6,"_",$R25),'CFR Constants'!$A$4:$E$27,3,FALSE) -> 322 | U25: =IF(OR(ISERROR(S25),ISERROR(Q25),ISERROR(T25)),1/0,ASTM(S25*Q25+T25,0)) -> 494 | V25: =VLOOKUP(CONCATENATE($C$6,"_",$R25),'CFR Constants'!$A$4:$E$27,4,FALSE) -> 0.0004703 | W25: =VLOOKUP(CONCATENATE($C$6,"_",$R25),'CFR Constants'!$A$4:$E$27,5,FALSE) -> 3.623 | X25: 8887 | Y25: =IF(OR(ISERROR(V25),ISERROR(Q25),ISERROR(W25)),1/0,ASTM(V25*Q25+W25,3)) -> 5.563 | Z25: 1424 | AA25: 0 | AB25: 0 | AC25: 703456 | AD25: 7921.712 | AE25: Grouped subconfigs & calc'd curb wt = (2 x ETW - GVWR) per 40 CFR 86.1819-14(a)(4)(i);
B26: 3500 Passenger VAN Trim Level B | G26: 6 | H26: 2wd | I26: 3.6L | J26: L8 | K26: 3.357 | L26: 22.9 | M26: 9480 | N26: 7209 | O26: 16000 | P26: 8500 | Q26: =ASTM(0.75*(M26-N26+IF(H26="4wd",500, 0))+0.25*(O26-M26),0) -> 3333 | R26: Spark Ignition | S26: =VLOOKUP(CONCATENATE($C$6,"_",$R26),'CFR Constants'!$A$4:$E$27,2,FALSE) -> 0.0418 | T26: =VLOOKUP(CONCATENATE($C$6,"_",$R26),'CFR Constants'!$A$4:$E$27,3,FALSE) -> 322 | U26: =IF(OR(ISERROR(S26),ISERROR(Q26),ISERROR(T26)),1/0,ASTM(S26*Q26+T26,0)) -> 461 | V26: =VLOOKUP(CONCATENATE($C$6,"_",$R26),'CFR Constants'!$A$4:$E$27,4,FALSE) -> 0.0004703 | W26: =VLOOKUP(CONCATENATE($C$6,"_",$R26),'CFR Constants'!$A$4:$E$27,5,FALSE) -> 3.623 | X26: 8887 | Y26: =IF(OR(ISERROR(V26),ISERROR(Q26),ISERROR(W26)),1/0,ASTM(V26*Q26+W26,3)) -> 5.191 | Z26: 16752 | AA26: 0 | AB26: 0 | AC26: 7722672 | AD26: 86959.632
B27: 3500 Cargo VAN Trim Level A | H27: 2wd | I27: 3.6L | J27: L8 | K27: 3.357 | L27: 22.9 | M27: 9900 | N27: 6878 | O27: 16000 | P27: 8500 | Q27: =ASTM(0.75*(M27-N27+IF(H27="4wd",500, 0))+0.25*(O27-M27),0) -> 3792 | R27: Spark Ignition | S27: =VLOOKUP(CONCATENATE($C$6,"_",$R27),'CFR Constants'!$A$4:$E$27,2,FALSE) -> 0.0418 | T27: =VLOOKUP(CONCATENATE($C$6,"_",$R27),'CFR Constants'!$A$4:$E$27,3,FALSE) -> 322 | U27: =IF(OR(ISERROR(S27),ISERROR(Q27),ISERROR(T27)),1/0,ASTM(S27*Q27+T27,0)) -> 481 | V27: =VLOOKUP(CONCATENATE($C$6,"_",$R27),'CFR Constants'!$A$4:$E$27,4,FALSE) -> 0.0004703 | W27: =VLOOKUP(CONCATENATE($C$6,"_",$R27),'CFR Constants'!$A$4:$E$27,5,FALSE) -> 3.623 | X27: 8887 | Y27: =IF(OR(ISERROR(V27),ISERROR(Q27),ISERROR(W27)),1/0,ASTM(V27*Q27+W27,3)) -> 5.406 | Z27: 824 | AA27: 0 | AB27: 0 | AC27: 396344 | AD27: 4454.544
B28: 3500 Cargo VAN Trim Level B | H28: 2wd | I28: 3.6L | J28: L8 | K28: 3.357 | L28: 22.9 | M28: 9900 | N28: 6975 | O28: 16000 | P28: 8500 | Q28: =ASTM(0.75*(M28-N28+IF(H28="4wd",500, 0))+0.25*(O28-M28),0) -> 3719 | R28: Spark Ignition | S28: =VLOOKUP(CONCATENATE($C$6,"_",$R28),'CFR Constants'!$A$4:$E$27,2,FALSE) -> 0.0418 | T28: =VLOOKUP(CONCATENATE($C$6,"_",$R28),'CFR Constants'!$A$4:$E$27,3,FALSE) -> 322 | U28: =IF(OR(ISERROR(S28),ISERROR(Q28),ISERROR(T28)),1/0,ASTM(S28*Q28+T28,0)) -> 477 | V28: =VLOOKUP(CONCATENATE($C$6,"_",$R28),'CFR Constants'!$A$4:$E$27,4,FALSE) -> 0.0004703 | W28: =VLOOKUP(CONCATENATE($C$6,"_",$R28),'CFR Constants'!$A$4:$E$27,5,FALSE) -> 3.623 | X28: 8887 | Y28: =IF(OR(ISERROR(V28),ISERROR(Q28),ISERROR(W28)),1/0,ASTM(V28*Q28+W28,3)) -> 5.372 | Z28: 3032 | AA28: 0 | AB28: 0 | AC28: 1446264 | AD28: 16287.904
B29: 3500 Cargo VAN Trim Level A (Hi roof) | G29: 7 | H29: 2wd | I29: 3.6L | J29: L8 | K29: 3.357 | L29: 24.5 | M29: 9900 | N29: =2*P29-M29 -> 6100 | O29: 16000 | P29: 8000 | Q29: =ASTM(0.75*(M29-N29+IF(H29="4wd",500, 0))+0.25*(O29-M29),0) -> 4375 | R29: Spark Ignition | S29: =VLOOKUP(CONCATENATE($C$6,"_",$R29),'CFR Constants'!$A$4:$E$27,2,FALSE) -> 0.0418 | T29: =VLOOKUP(CONCATENATE($C$6,"_",$R29),'CFR Constants'!$A$4:$E$27,3,FALSE) -> 322 | U29: =IF(OR(ISERROR(S29),ISERROR(Q29),ISERROR(T29)),1/0,ASTM(S29*Q29+T29,0)) -> 505 | V29: =VLOOKUP(CONCATENATE($C$6,"_",$R29),'CFR Constants'!$A$4:$E$27,4,FALSE) -> 0.0004703 | W29: =VLOOKUP(CONCATENATE($C$6,"_",$R29),'CFR Constants'!$A$4:$E$27,5,FALSE) -> 3.623 | X29: 8887 | Y29: =IF(OR(ISERROR(V29),ISERROR(Q29),ISERROR(W29)),1/0,ASTM(V29*Q29+W29,3)) -> 5.681 | Z29: 1088 | AA29: 0 | AB29: 0 | AC29: 549440 | AD29: 6180.928 | AE29: Grouped subconfigs & calc'd curb wt = (2 x ETW - GVWR) per 40 CFR 86.1819-14(a)(4)(i);
B30: 3500 Cargo VAN Trim Level B (Hi roof) | H30: 2wd | I30: 3.6L | J30: L8 | K30: 3.357 | L30: 24.5 | M30: 9900 | N30: =2*P30-M30 -> 6100 | O30: 16000 | P30: 8000 | Q30: =ASTM(0.75*(M30-N30+IF(H30="4wd",500, 0))+0.25*(O30-M30),0) -> 4375 | R30: Spark Ignition | S30: =VLOOKUP(CONCATENATE($C$6,"_",$R30),'CFR Constants'!$A$4:$E$27,2,FALSE) -> 0.0418 | T30: =VLOOKUP(CONCATENATE($C$6,"_",$R30),'CFR Constants'!$A$4:$E$27,3,FALSE) -> 322 | U30: =IF(OR(ISERROR(S30),ISERROR(Q30),ISERROR(T30)),1/0,ASTM(S30*Q30+T30,0)) -> 505 | V30: =VLOOKUP(CONCATENATE($C$6,"_",$R30),'CFR Constants'!$A$4:$E$27,4,FALSE) -> 0.0004703 | W30: =VLOOKUP(CONCATENATE($C$6,"_",$R30),'CFR Constants'!$A$4:$E$27,5,FALSE) -> 3.623 | X30: 8887 | Y30: =IF(OR(ISERROR(V30),ISERROR(Q30),ISERROR(W30)),1/0,ASTM(V30*Q30+W30,3)) -> 5.681 | Z30: 4656 | AA30: 0 | AB30: 0 | AC30: 2351280 | AD30: 26450.736 | AE30: Grouped subconfigs & calc'd curb wt = (2 x ETW - GVWR) per 40 CFR 86.1819-14(a)(4)(i);
B31: 2500 Pickup-Trim Level A Short Cab | D31: AA2 | F31: 3 | G31: 8 | H31: 2wd | I31: 3.6L | J31: L8 | K31: 3.357 | L31: 21.2 | M31: 8600 | N31: 5743 | O31: 17700 | P31: 7000 | Q31: =ASTM(0.75*(M31-N31+IF(H31="4wd",500, 0))+0.25*(O31-M31),0) -> 4418 | R31: Spark Ignition | S31: =VLOOKUP(CONCATENATE($C$6,"_",$R31),'CFR Constants'!$A$4:$E$27,2,FALSE) -> 0.0418 | T31: =VLOOKUP(CONCATENATE($C$6,"_",$R31),'CFR Constants'!$A$4:$E$27,3,FALSE) -> 322 | U31: =IF(OR(ISERROR(S31),ISERROR(Q31),ISERROR(T31)),1/0,ASTM(S31*Q31+T31,0)) -> 507 | V31: =VLOOKUP(CONCATENATE($C$6,"_",$R31),'CFR Constants'!$A$4:$E$27,4,FALSE) -> 0.0004703 | W31: =VLOOKUP(CONCATENATE($C$6,"_",$R31),'CFR Constants'!$A$4:$E$27,5,FALSE) -> 3.623 | X31: 8887 | Y31: =IF(OR(ISERROR(V31),ISERROR(Q31),ISERROR(W31)),1/0,ASTM(V31*Q31+W31,3)) -> 5.701 | Z31: 272 | AA31: 0 | AB31: 0 | AC31: 137904 | AD31: 1550.672
B32: 2500 Pickup-Trim Level A 4-door Cab | G32: 9 | H32: 2wd | I32: 3.6L | J32: L8 | K32: 3.357 | L32: 20.7 | M32: 8600 | N32: =2*P32-M32 -> 6400 | O32: 17700 | P32: 7500 | Q32: =ASTM(0.75*(M32-N32+IF(H32="4wd",500, 0))+0.25*(O32-M32),0) -> 3925 | R32: Spark Ignition | S32: =VLOOKUP(CONCATENATE($C$6,"_",$R32),'CFR Constants'!$A$4:$E$27,2,FALSE) -> 0.0418 | T32: =VLOOKUP(CONCATENATE($C$6,"_",$R32),'CFR Constants'!$A$4:$E$27,3,FALSE) -> 322 | U32: =IF(OR(ISERROR(S32),ISERROR(Q32),ISERROR(T32)),1/0,ASTM(S32*Q32+T32,0)) -> 486 | V32: =VLOOKUP(CONCATENATE($C$6,"_",$R32),'CFR Constants'!$A$4:$E$27,4,FALSE) -> 0.0004703 | W32: =VLOOKUP(CONCATENATE($C$6,"_",$R32),'CFR Constants'!$A$4:$E$27,5,FALSE) -> 3.623 | X32: 8887 | Y32: =IF(OR(ISERROR(V32),ISERROR(Q32),ISERROR(W32)),1/0,ASTM(V32*Q32+W32,3)) -> 5.469 | Z32: 104 | AA32: 0 | AB32: 0 | AC32: 50544 | AD32: 568.776 | AE32: Grouped subconfigs & calc'd curb wt = (2 x ETW - GVWR) per 40 CFR 86.1819-14(a)(4)(i);
B33: 2500 Pickup-Trim Level C 4-door (20" Tire) | G33: 10 | H33: 2wd | I33: 3.6L | J33: L8 | K33: 3.357 | L33: 21.3 | M33: 8600 | N33: 6426 | O33: 16900 | P33: 7500 | Q33: =ASTM(0.75*(M33-N33+IF(H33="4wd",500, 0))+0.25*(O33-M33),0) -> 3706 | R33: Spark Ignition | S33: =VLOOKUP(CONCATENATE($C$6,"_",$R33),'CFR Constants'!$A$4:$E$27,2,FALSE) -> 0.0418 | T33: =VLOOKUP(CONCATENATE($C$6,"_",$R33),'CFR Constants'!$A$4:$E$27,3,FALSE) -> 322 | U33: =IF(OR(ISERROR(S33),ISERROR(Q33),ISERROR(T33)),1/0,ASTM(S33*Q33+T33,0)) -> 477 | V33: =VLOOKUP(CONCATENATE($C$6,"_",$R33),'CFR Constants'!$A$4:$E$27,4,FALSE) -> 0.0004703 | W33: =VLOOKUP(CONCATENATE($C$6,"_",$R33),'CFR Constants'!$A$4:$E$27,5,FALSE) -> 3.623 | X33: 8887 | Y33: =IF(OR(ISERROR(V33),ISERROR(Q33),ISERROR(W33)),1/0,ASTM(V33*Q33+W33,3)) -> 5.366 | Z33: 16 | AA33: 0 | AB33: 0 | AC33: 7632 | AD33: 85.856
B34: 2500 Pickup-Trim Level B 4-door (20" Tire) | H34: 2wd | I34: 3.6L | J34: L8 | K34: 3.357 | L34: 21.3 | M34: 8600 | N34: 6408 | O34: 16900 | P34: 7500 | Q34: =ASTM(0.75*(M34-N34+IF(H34="4wd",500, 0))+0.25*(O34-M34),0) -> 3719 | R34: Spark Ignition | S34: =VLOOKUP(CONCATENATE($C$6,"_",$R34),'CFR Constants'!$A$4:$E$27,2,FALSE) -> 0.0418 | T34: =VLOOKUP(CONCATENATE($C$6,"_",$R34),'CFR Constants'!$A$4:$E$27,3,FALSE) -> 322 | U34: =IF(OR(ISERROR(S34),ISERROR(Q34),ISERROR(T34)),1/0,ASTM(S34*Q34+T34,0)) -> 477 | V34: =VLOOKUP(CONCATENATE($C$6,"_",$R34),'CFR Constants'!$A$4:$E$27,4,FALSE) -> 0.0004703 | W34: =VLOOKUP(CONCATENATE($C$6,"_",$R34),'CFR Constants'!$A$4:$E$27,5,FALSE) -> 3.623 | X34: 8887 | Y34: =IF(OR(ISERROR(V34),ISERROR(Q34),ISERROR(W34)),1/0,ASTM(V34*Q34+W34,3)) -> 5.372 | Z34: 120 | AA34: 0 | AB34: 0 | AC34: 57240 | AD34: 644.64
B35: 2500 Pickup-Trim Level A Extended Cab | H35: 2wd | I35: 3.6L | J35: L8 | K35: 3.357 | L35: 21.3 | M35: 8600 | N35: 5940 | O35: 17700 | P35: 7500 | Q35: =ASTM(0.75*(M35-N35+IF(H35="4wd",500, 0))+0.25*(O35-M35),0) -> 4270 | R35: Spark Ignition | S35: =VLOOKUP(CONCATENATE($C$6,"_",$R35),'CFR Constants'!$A$4:$E$27,2,FALSE) -> 0.0418 | T35: =VLOOKUP(CONCATENATE($C$6,"_",$R35),'CFR Constants'!$A$4:$E$27,3,FALSE) -> 322 | U35: =IF(OR(ISERROR(S35),ISERROR(Q35),ISERROR(T35)),1/0,ASTM(S35*Q35+T35,0)) -> 500 | V35: =VLOOKUP(CONCATENATE($C$6,"_",$R35),'CFR Constants'!$A$4:$E$27,4,FALSE) -> 0.0004703 | W35: =VLOOKUP(CONCATENATE($C$6,"_",$R35),'CFR Constants'!$A$4:$E$27,5,FALSE) -> 3.623 | X35: 8887 | Y35: =IF(OR(ISERROR(V35),ISERROR(Q35),ISERROR(W35)),1/0,ASTM(V35*Q35+W35,3)) -> 5.631 | Z35: 272 | AA35: 0 | AB35: 0 | AC35: 136000 | AD35: 1531.632 | AE35: Grouped subconfigs & calc'd curb wt = (2 x ETW - GVWR) per 40 CFR 86.1819-14(a)(4)(i);
B36: 2500 Pickup-Trim Level D Extended Cab | G36: 11 | H36: 4wd | I36: 3.6L | J36: L8 | K36: 3.357 | L36: 23.9 | M36: 8800 | N36: =2*P36-M36 -> 6200 | O36: 17700 | P36: 7500 | Q36: =ASTM(0.75*(M36-N36+IF(H36="4wd",500, 0))+0.25*(O36-M36),0) -> 4550 | R36: Spark Ignition | S36: =VLOOKUP(CONCATENATE($C$6,"_",$R36),'CFR Constants'!$A$4:$E$27,2,FALSE) -> 0.0418 | T36: =VLOOKUP(CONCATENATE($C$6,"_",$R36),'CFR Constants'!$A$4:$E$27,3,FALSE) -> 322 | U36: =IF(OR(ISERROR(S36),ISERROR(Q36),ISERROR(T36)),1/0,ASTM(S36*Q36+T36,0)) -> 512 | V36: =VLOOKUP(CONCATENATE($C$6,"_",$R36),'CFR Constants'!$A$4:$E$27,4,FALSE) -> 0.0004703 | W36: =VLOOKUP(CONCATENATE($C$6,"_",$R36),'CFR Constants'!$A$4:$E$27,5,FALSE) -> 3.623 | X36: 8887 | Y36: =IF(OR(ISERROR(V36),ISERROR(Q36),ISERROR(W36)),1/0,ASTM(V36*Q36+W36,3)) -> 5.763 | Z36: 688 | AA36: 0 | AB36: 0 | AC36: 352256 | AD36: 3964.944 | AE36: Grouped subconfigs & calc'd curb wt = (2 x ETW - GVWR) per 40 CFR 86.1819-14(a)(4)(i);
B37: 2500 Pickup-Trim Level A Extended Cab | C37: NXXXD04.0ZZZ | D37: AA-10 | E37: 3 | F37: 4* | G37: 12 | H37: 2wd | I37: 4.0L-Turbo | J37: L6 | K37: 3.916 | L37: 23.5 | M37: 8800 | N37: 6200 | O37: 19450 | P37: 7500 | Q37: =ASTM(0.75*(M37-N37+IF(H37="4wd",500, 0))+0.25*(O37-M37),0) -> 4612 | R37: Compression Ignition | S37: =VLOOKUP(CONCATENATE($C$6,"_",$R37),'CFR Constants'!$A$4:$E$27,2,FALSE) -> 0.0395 | T37: =VLOOKUP(CONCATENATE($C$6,"_",$R37),'CFR Constants'!$A$4:$E$27,3,FALSE) -> 304 | U37: =IF(OR(ISERROR(S37),ISERROR(Q37),ISERROR(T37)),1/0,ASTM(S37*Q37+T37,0)) -> 486 | V37: =VLOOKUP(CONCATENATE($C$6,"_",$R37),'CFR Constants'!$A$4:$E$27,4,FALSE) -> 0.000388 | W37: =VLOOKUP(CONCATENATE($C$6,"_",$R37),'CFR Constants'!$A$4:$E$27,5,FALSE) -> 2.986 | X37: 10180 | Y37: =IF(OR(ISERROR(V37),ISERROR(Q37),ISERROR(W37)),1/0,ASTM(V37*Q37+W37,3)) -> 4.775 | Z37: 80 | AA37: 0 | AB37: 0 | AC37: 38880 | AD37: 382 | AE37: Grouped subconfigs & calc'd curb wt = (2 x ETW - GVWR) per 40 CFR 86.1819-14(a)(4)(i);
B38: 2500 Pickup-Trim Level A Short Cab | G38: 13 | H38: 2wd | I38: 4.0L-Turbo | J38: L6 | K38: 3.916 | L38: 23.9 | M38: 8800 | N38: 6200 | O38: 19450 | P38: 7500 | Q38: =ASTM(0.75*(M38-N38+IF(H38="4wd",500, 0))+0.25*(O38-M38),0) -> 4612 | R38: Compression Ignition | S38: =VLOOKUP(CONCATENATE($C$6,"_",$R38),'CFR Constants'!$A$4:$E$27,2,FALSE) -> 0.0395 | T38: =VLOOKUP(CONCATENATE($C$6,"_",$R38),'CFR Constants'!$A$4:$E$27,3,FALSE) -> 304 | U38: =IF(OR(ISERROR(S38),ISERROR(Q38),ISERROR(T38)),1/0,ASTM(S38*Q38+T38,0)) -> 486 | V38: =VLOOKUP(CONCATENATE($C$6,"_",$R38),'CFR Constants'!$A$4:$E$27,4,FALSE) -> 0.000388 | W38: =VLOOKUP(CONCATENATE($C$6,"_",$R38),'CFR Constants'!$A$4:$E$27,5,FALSE) -> 2.986 | X38: 10180 | Y38: =IF(OR(ISERROR(V38),ISERROR(Q38),ISERROR(W38)),1/0,ASTM(V38*Q38+W38,3)) -> 4.775 | Z38: 8 | AA38: 0 | AB38: 0 | AC38: 3888 | AD38: 38.2 | AE38: Grouped subconfigs & calc'd curb wt = (2 x ETW - GVWR) per 40 CFR 86.1819-14(a)(4)(i);
B39: 2500 Pickup-Trim Level A 4-door Cab | G39: 14 | H39: 2wd | I39: 4.0L-Turbo | J39: L6 | K39: 3.916 | L39: 22.9 | M39: 8800 | N39: 7200 | O39: 19450 | P39: 8000 | Q39: =ASTM(0.75*(M39-N39+IF(H39="4wd",500, 0))+0.25*(O39-M39),0) -> 3862 | R39: Compression Ignition | S39: =VLOOKUP(CONCATENATE($C$6,"_",$R39),'CFR Constants'!$A$4:$E$27,2,FALSE) -> 0.0395 | T39: =VLOOKUP(CONCATENATE($C$6,"_",$R39),'CFR Constants'!$A$4:$E$27,3,FALSE) -> 304 | U39: =IF(OR(ISERROR(S39),ISERROR(Q39),ISERROR(T39)),1/0,ASTM(S39*Q39+T39,0)) -> 457 | V39: =VLOOKUP(CONCATENATE($C$6,"_",$R39),'CFR Constants'!$A$4:$E$27,4,FALSE) -> 0.000388 | W39: =VLOOKUP(CONCATENATE($C$6,"_",$R39),'CFR Constants'!$A$4:$E$27,5,FALSE) -> 2.986 | X39: 10180 | Y39: =IF(OR(ISERROR(V39),ISERROR(Q39),ISERROR(W39)),1/0,ASTM(V39*Q39+W39,3)) -> 4.484 | Z39: 32 | AA39: 0 | AB39: 0 | AC39: 14624 | AD39: 143.488 | AE39: Grouped subconfigs & calc'd curb wt = (2 x ETW - GVWR) per 40 CFR 86.1819-14(a)(4)(i);
B40: 2500 Pickup-Trim Level B 4-door Cab | G40: 15 | H40: 2wd | I40: 4.0L-Turbo | J40: L6 | K40: 3.916 | L40: 23.6 | M40: 8800 | N40: 7200 | O40: 19450 | P40: 8000 | Q40: =ASTM(0.75*(M40-N40+IF(H40="4wd",500, 0))+0.25*(O40-M40),0) -> 3862 | R40: Compression Ignition | S40: =VLOOKUP(CONCATENATE($C$6,"_",$R40),'CFR Constants'!$A$4:$E$27,2,FALSE) -> 0.0395 | T40: =VLOOKUP(CONCATENATE($C$6,"_",$R40),'CFR Constants'!$A$4:$E$27,3,FALSE) -> 304 | U40: =IF(OR(ISERROR(S40),ISERROR(Q40),ISERROR(T40)),1/0,ASTM(S40*Q40+T40,0)) -> 457 | V40: =VLOOKUP(CONCATENATE($C$6,"_",$R40),'CFR Constants'!$A$4:$E$27,4,FALSE) -> 0.000388 | W40: =VLOOKUP(CONCATENATE($C$6,"_",$R40),'CFR Constants'!$A$4:$E$27,5,FALSE) -> 2.986 | X40: 10180 | Y40: =IF(OR(ISERROR(V40),ISERROR(Q40),ISERROR(W40)),1/0,ASTM(V40*Q40+W40,3)) -> 4.484 | Z40: 16 | AA40: 0 | AB40: 0 | AC40: 7312 | AD40: 71.744 | AE40: Grouped subconfigs & calc'd curb wt = (2 x ETW - GVWR) per 40 CFR 86.1819-14(a)(4)(i);
B41: 2500 Pickup-Trim Level B Extended Cab | G41: 16 | H41: 2wd | I41: 4.0L-Turbo | J41: L6 | K41: 3.916 | L41: 24 | M41: 8800 | N41: 7200 | O41: 19450 | P41: 8000 | Q41: =ASTM(0.75*(M41-N41+IF(H41="4wd",500, 0))+0.25*(O41-M41),0) -> 3862 | R41: Compression Ignition | S41: =VLOOKUP(CONCATENATE($C$6,"_",$R41),'CFR Constants'!$A$4:$E$27,2,FALSE) -> 0.0395 | T41: =VLOOKUP(CONCATENATE($C$6,"_",$R41),'CFR Constants'!$A$4:$E$27,3,FALSE) -> 304 | U41: =IF(OR(ISERROR(S41),ISERROR(Q41),ISERROR(T41)),1/0,ASTM(S41*Q41+T41,0)) -> 457 | V41: =VLOOKUP(CONCATENATE($C$6,"_",$R41),'CFR Constants'!$A$4:$E$27,4,FALSE) -> 0.000388 | W41: =VLOOKUP(CONCATENATE($C$6,"_",$R41),'CFR Constants'!$A$4:$E$27,5,FALSE) -> 2.986 | X41: 10180 | Y41: =IF(OR(ISERROR(V41),ISERROR(Q41),ISERROR(W41)),1/0,ASTM(V41*Q41+W41,3)) -> 4.484 | Z41: 8 | AA41: 0 | AB41: 0 | AC41: 3656 | AD41: 35.872 | AE41: Grouped subconfigs & calc'd curb wt = (2 x ETW - GVWR) per 40 CFR 86.1819-14(a)(4)(i);
B42: 2500 Pickup-Trim Level A 4-door Cab | D42: AA-20 | G42: 17 | H42: 4wd | I42: 4.0L-Turbo | J42: L6 | K42: 3.916 | L42: 24.4 | M42: 8990 | N42: 7010 | O42: 19450 | P42: 8000 | Q42: =ASTM(0.75*(M42-N42+IF(H42="4wd",500, 0))+0.25*(O42-M42),0) -> 4475 | R42: Compression Ignition | S42: =VLOOKUP(CONCATENATE($C$6,"_",$R42),'CFR Constants'!$A$4:$E$27,2,FALSE) -> 0.0395 | T42: =VLOOKUP(CONCATENATE($C$6,"_",$R42),'CFR Constants'!$A$4:$E$27,3,FALSE) -> 304 | U42: =IF(OR(ISERROR(S42),ISERROR(Q42),ISERROR(T42)),1/0,ASTM(S42*Q42+T42,0)) -> 481 | V42: =VLOOKUP(CONCATENATE($C$6,"_",$R42),'CFR Constants'!$A$4:$E$27,4,FALSE) -> 0.000388 | W42: =VLOOKUP(CONCATENATE($C$6,"_",$R42),'CFR Constants'!$A$4:$E$27,5,FALSE) -> 2.986 | X42: 10180 | Y42: =IF(OR(ISERROR(V42),ISERROR(Q42),ISERROR(W42)),1/0,ASTM(V42*Q42+W42,3)) -> 4.722 | Z42: 1928 | AA42: 0 | AB42: 0 | AC42: 927368 | AD42: 9104.016 | AE42: Grouped subconfigs & calc'd curb wt = (2 x ETW - GVWR) per 40 CFR 86.1819-14(a)(4)(i);
D43: * Configuration number is combined because actual engine and ECM is one specification in spite of two engine codes.

Sheet Fleet ave calculation
B1: Purpose and Scope of this Guidance Document
M2: This document was prepared by EPA's Office of Transportation and Air Quality (OTAQ). It is intended to aid regulated parties in reporting fleet average Greenhouse Gas (GHG), Corporate Average Fuel Consumption (CAFC) values and calculating AB&T fleet average credits for heavy-duty class 2b and 3 vehicles, ref. 40 CFR 86.1819-14 and 49 CFR 535.5(a), 535.6(a), 535.7. It contains EPA's recommended format for manufacturers to report to EPA their end-of-year GHG and CAFC calculations, credits and other information with respect to the implementation of the Phase 2 Greenhouse Gas Emissions and Fuel Efficiency Standards for Heavy-Duty Class 2b and 3 Pickup Trucks and Vans, ref. 81 FR 73478, October 25, 2016, including any subsequent revisions to those requirements. The use of this document is purely optional. This document does not in any way alter or waive the requirements in EPA regulations. Although the calculations and formulas provided in this document are intended to assist manufacturers in the implementation of EPA regulations, this document does not establish or change the legal rights or obligations of manufacturers or others in complying with EPA regulations, including 40 CFR 86.1865-12. If an error or other discrepancy is found in this document, including the calculation formulas, please contact your EPA certification team member. The regulations take precedence.
B4: Final HD Class 2b/3 CAFC/GHG Model Year Report - CO2 and FC Fleet Average Performance Calculations
B5: Manufacturer | C5: ABC HD 2b/3 Truck Co
B6: Model Year | C6: 2022 | D6: =IF(C6='Fleet std calculation'!C6,"","ERROR--Model Year of Conventional vehicle Fleet Standard calculation tab doesn't match the Model Year of the Conventional Vehicle Fleet Average Calculation tab;") -> 
C8: AA. Total production volume | D8: BB. Fleet average CO2 (gpm) | E8: EE. Fleet average FC (gal/100 mile) | F8: Number of Subconfigurations | G8: Number of vehicles Actually tested | H8: Rate of production volume represented by test data (%)
C9: =IF($C$6>2023, SUM(P14:Q14), SUM(P14:R14)) -> 79920 | D9: =ASTM(Z14/C9,0) -> 456 | E9: =ASTM(AD14/C9,3) -> 5.116 | F9: =COUNT(G15:G302) -> 17 | G9: =AK32 -> 13 | H9: 1 | I9: =IF(C9='Fleet std calculation'!C12,"","ERROR--Total production volume of Fleet std calculation tab doesn't match the Total production volume of the Fleet ave Calculation tab;") -> 
B11: Subconfiguration Information | P11: Production Volumes | T11: GHG Compliance Level+T9 (see instructions) | AC11: FC Compliance Level | AE11: GHG Credits | AI11: FC Credits | AK11: Test information | AQ11: AM. In-use CO2 standard | AR11: AN. Comments
B12: B. Truck Line Name and Description | C12: C. Test Group | D12: D. Engine Code | E12: E. Base level (test group/ transmission type) | F12: F. Config. Group | G12: G. Sub- config. Group Name | H12: H. 2 or 4 Wheel Drive | I12: I. Engine | J12: J. Trans Class | K12: K. Final Drive Ratio | L12: L. Road Load HP | M12: M. ETW (ALVW) | N12: N. Spark Ignition or Compression Ignition | O12: O. Conversion Factor | P12: P. Production volume under 40 CFR 86.1819-14(a) | Q12: Q. Production volume under 40 CFR 86.1819-14(j) (incomplete & sister vehicles) | R12: R. Loose Engine production volume under 40 CFR 86.1819-14(k)(8) (cannot be used after 2023MY) | S12: S. Sales fraction in DVC (config) | T12: T. RLC (subconfig) CO2 emis-sions | U12: U. DVC (config) CO2 emis-sions | V12: V. Sales fraction in BL | W12: W. Base Level CO2 emssions | X12: X. CO2 Value based on ADC? | Y12: Y. If ADC derived, Test vehicle ID and Conf. that is source of CO2base | Z12: Z. Vol x CO2 | AA12: AA. N2O FEL | AB12: AB. CH4 FEL | AC12: AC. Base Level Fuel Consumption (FC) | AD12: AD. Vol x FC | AE12: AE. CO2 Credits required for 150K N2O compliance | AF12: AF. CO2 Credits req'd for 150K CH4 compliance (Using Global Warming Potential = 34) | AG12: AG. Off Cycle (Innovative Technology) 150K CO2 credits [Prior EPA approval required] | AI12: AH. Innovative and Off Cycle 150K FC credits | AK12: AI. No. of RLCs covered by atual test | AL12: AJ. Test Vehicle ID/Config. | AM12: AK. Test Number | AO12: AL. Test Result (CO2) (Round to nearest whole number)
M13: lbs. | O13: grams CO2/gal | T13: gpm | U13: gpm | W13: gpm | AA13: gpm | AB13: gpm | AC13: gal/100-mile | AE13: megagrams | AF13: megagrams | AG13: gpm | AH13: megagrams | AI13: gal/100 mile | AJ13: gallons | AM13: CITY | AN13: HWY | AO13: CITY | AP13: HWY
P14: =SUM(P15:P32) -> 79920 | Q14: =SUM(Q15:Q32) -> 0 | R14: =IF($C$6>2023,0,SUM(R15:R32)) -> 0 | Z14: =SUM(Z15:Z32) -> 36448002.4 | AD14: =SUM(AD15:AD32) -> 408846.904 | AE14: =SUM(AE15:AE32) -> 0 | AF14: =SUM(AF15:AF32) -> 0 | AH14: =SUM(AH15:AH32) -> 0 | AJ14: =SUM(AJ15:AJ32) -> 0
B15: 1500 Cargo VAN - Trim Level A 2500 Cargo VAN - Trim Level A, B | C15: NXXXD02.5XXX | D15: AA5 | E15: 1 | F15: 1 | G15: 1 | H15: 2wd | I15: 2.5L | J15: L6 | K15: 3.357 | L15: 22.4 | M15: 7500 | N15: Spark Ignition | O15: =IF(N15="","",IF(N15="Spark Ignition",8887,10180)) -> 8887 | P15: 28464 | Q15: 0 | R15: 0 | S15: =ASTM(IF($C$6>2023,SUM(P15:Q15)/SUM($P$15:$Q$17),SUM(P15:R15)/SUM($P$15:$R$17)),4) -> 0.6063 | T15: =ASTM(AO15*0.55+AP15*0.45,1) -> 447.9 | U15: =ASTM(SUMPRODUCT(S15:S17,T15:T17),1) -> 450.7 | V15: 1 | W15: =ASTM(U15,1) -> 450.7 | X15: No | Y15: NA | Z15: =(IF($C$6>2023,SUM(P15:Q17)*W15,SUM(P15:R17)*W15)) -> 21157660.8 | AA15: 0.05 | AB15: 0.05 | AC15: =ASTM(W15/O15*100,3) -> 5.071 | AD15: =(IF($C$6>2023,SUM(P15:Q17)*AC15,SUM(P15:R17)*AC15)) -> 238053.024 | AE15: =ASTM(IF(AA15>0.05,-1*(AA15-0.05)*298*SUM(Q15:S17)*150000/1000000,0),0) -> 0 | AF15: =ASTM(IF(AB15>0.05,-1*(AB15-0.05)*34*SUM(Q15:S17)*150000/1000000,0),0) -> 0 | AG15: 0 | AH15: =IF(AG15="",0, ASTM(AG15*SUM(P15:Q15)*150000/1000000,0)) -> 0 | AI15: =IF(AG15="",0,AG15/O15*100) -> 0 | AJ15: =ASTM(AG15/O15,4)*150000*SUM(P15:R15) -> 0 | AK15: 1 | AL15: E350/02 | AM15: NXXX1004909X | AN15: NXXX1004909X | AO15: 546 | AP15: 328 | AQ15: =ASTM(T15*1.1,0) -> 493
B16: 2500 Cargo VAN - Trim Level A, B (Hi roof) | G16: 2 | H16: 2wd | I16: 2.5L | J16: L6 | K16: 3.357 | L16: 24 | M16: 7500 | N16: Spark Ignition | O16: 8887 | P16: 14816 | Q16: 0 | R16: 0 | S16: =ASTM(IF($C$6>2023,SUM(P16:Q16)/SUM($P$15:$Q$17),SUM(P16:R16)/SUM($P$15:$R$17)),4) -> 0.3156 | T16: =ASTM(AO16*0.55+AP16*0.45,1) -> 454.4 | X16: No | Y16: NA | AG16: 0 | AH16: =IF(AG16="",0, ASTM(AG16*SUM(P16:Q16)*150000/1000000,0)) -> 0 | AI16: 0 | AJ16: =ASTM(AG16/O16,4)*150000*SUM(P16:Q16) -> 0 | AK16: 2 | AL16: E350/03 | AM16: NXXX1004908X | AN16: NXXX1004908X | AO16: 553 | AP16: 334 | AQ16: =ASTM(T16*1.1,0) -> 500
B17: 3500 Passenger VAN - Trim Level A | G17: 3 | H17: 2wd | I17: 2.5L | J17: L6 | K17: 3.357 | L17: 22.9 | M17: 8000 | N17: Spark Ignition | O17: 8887 | P17: 3664 | Q17: 0 | R17: 0 | S17: =ASTM(IF($C$6>2023,SUM(P17:Q17)/SUM($P$15:$Q$17),SUM(P17:R17)/SUM($P$15:$R$17)),4) -> 0.0781 | T17: =ASTM(AO17*0.55+AP17*0.45,1) -> 456.9 | X17: No | Y17: NA | AG17: 0 | AH17: =IF(AG17="",0, ASTM(AG17*SUM(P17:Q17)*150000/1000000,0)) -> 0 | AI17: 0 | AJ17: =ASTM(AG17/O17,4)*150000*SUM(P17:Q17) -> 0 | AK17: 3 | AL17: E350/01 | AM17: NXXX9100366X | AN17: NXXX9100366X | AO17: 564 | AP17: 326 | AQ17: =ASTM(T17*1.1,0) -> 503
B18: 2500 Cargo VAN - Trim Level A | C18: NXXXD03.6YYY | D18: AA6 | E18: 2 | F18: 2 | G18: 4 | H18: 2wd | I18: 3.6L | J18: L8 | K18: 3.357 | L18: 22.4 | M18: 7500 | N18: Spark Ignition | O18: 8887 | P18: 1656 | Q18: 0 | R18: 0 | S18: =ASTM(IF($C$6>2023,SUM(P18:Q18)/SUM($P$18:$Q$21),SUM(P18:R18)/SUM($P$18:$R$21)),4) -> 0.0563 | T18: =ASTM(AO18*0.55+AP18*0.45,1) -> 450.2 | U18: =ASTM(SUMPRODUCT(S18:S21,T18:T21),1) -> 466.8 | V18: =ASTM(IF($C$6>2023,SUM(P18:Q21)/SUM($P$18:$Q$26),SUM(P18:R21)/SUM($P$18:$R$26)),4) -> 0.9524 | W18: =ASTM(U18*V18+U22*V22,1) -> 466.1 | X18: No | Y18: NA | Z18: =(IF($C$6>2023,SUM(P18:Q26)*W18,SUM(P18:R26)*W18)) -> 14404354.4 | AA18: 0.05 | AB18: 0.05 | AC18: =ASTM(W18/O18*100,3) -> 5.245 | AD18: =(IF($C$6>2023,SUM(P18:Q26)*AC18,SUM(P18:R26)*AC18)) -> 162091.48 | AE18: =ASTM(IF(AA18>0.05,-1*(AA18-0.05)*298*SUM(P18:R22)*150000/1000000,0),0) -> 0 | AF18: =ASTM(IF(AB18>0.05,-1*(AB18-0.05)*34*SUM(P18:R22)*150000/1000000,0),0) -> 0 | AG18: 0 | AH18: =IF(AG18="",0, ASTM(AG18*SUM(P18:Q18)*150000/1000000,0)) -> 0 | AI18: 0 | AJ18: =ASTM(AG18/O18,4)*150000*SUM(P18:Q18) -> 0 | AK18: 4 | AL18: B237/05 | AM18: MXXX1004494X | AN18: MXXX1004495X | AO18: 547 | AP18: 332 | AQ18: =ASTM(T18*1.1,0) -> 495
B19: 2500 Cargo VAN - Trim Level A (Hi roof) | G19: 5 | H19: 2wd | I19: 3.6L | J19: L8 | K19: 3.357 | L19: 24 | M19: 7500 | N19: Spark Ignition | O19: 8887 | P19: 1424 | Q19: 0 | R19: 0 | S19: =ASTM(IF($C$6>2023,SUM(P19:Q19)/SUM($P$18:$Q$21),SUM(P19:R19)/SUM($P$18:$R$21)),4) -> 0.0484 | T19: =ASTM(AO19*0.55+AP19*0.45,1) -> 454.1 | X19: No | Y19: NA | AG19: 0 | AH19: =IF(AG19="",0, ASTM(AG19*SUM(P19:Q19)*150000/1000000,0)) -> 0 | AI19: 0 | AJ19: =ASTM(AG19/O19,4)*150000*SUM(P19:Q19) -> 0 | AK19: 5 | AL19: B237/04 | AM19: MXXX1004494X | AN19: MXXX1004494X | AO19: 545 | AP19: 343 | AQ19: =ASTM(T19*1.1,0) -> 500
B20: 3500 Passenger VAN - Trim Level B 3500 Cargo VAN - Trim Level A, B | G20: 6 | H20: 2wd | I20: 3.6L | J20: L8 | K20: 3.357 | L20: 22.9 | M20: 8500 | N20: Spark Ignition | O20: 8887 | P20: 20608 | Q20: 0 | R20: 0 | S20: =ASTM(IF($C$6>2023,SUM(P20:Q20)/SUM($P$18:$Q$21),SUM(P20:R20)/SUM($P$18:$R$21)),4) -> 0.7002 | T20: =ASTM(AO20*0.55+AP20*0.45,1) -> 468.7 | X20: No | Y20: NA | AG20: 0 | AH20: =IF(AG20="",0, ASTM(AG20*SUM(P20:Q20)*150000/1000000,0)) -> 0 | AI20: 0 | AJ20: =ASTM(AG20/O20,4)*150000*SUM(P20:Q20) -> 0 | AK20: 6 | AL20: B237/03 | AM20: MXXX1004494X | AN20: MXXX1004494X | AO20: 574 | AP20: 340 | AQ20: =ASTM(T20*1.1,0) -> 516
B21: 3500 Cargo VAN - Trim Level A, B (Hi roof) | G21: 7 | H21: 2wd | I21: 3.6L | J21: L8 | K21: 3.357 | L21: 24.5 | M21: 8000 | N21: Spark Ignition | O21: 8887 | P21: 5744 | Q21: 0 | R21: 0 | S21: =ASTM(IF($C$6>2023,SUM(P21:Q21)/SUM($P$18:$Q$21),SUM(P21:R21)/SUM($P$18:$R$21)),4) -> 0.1952 | T21: =ASTM(AO21*0.55+AP21*0.45,1) -> 467.8 | X21: No | Y21: NA | AG21: 0 | AH21: =IF(AG21="",0, ASTM(AG21*SUM(P21:Q21)*150000/1000000,0)) -> 0 | AI21: 0 | AJ21: =ASTM(AG21/O21,4)*150000*SUM(P21:Q21) -> 0 | AK21: 7 | AL21: B237/02 | AM21: MXXX1004495X | AN21: MXXX1004495X | AO21: 569 | AP21: 344 | AQ21: =ASTM(T21*1.1,0) -> 515
B22: 2500 Pickup-Trim Level A Short Cab | D22: AA2 | F22: 3 | G22: 8 | H22: 2wd | I22: 3.6L | J22: L8 | K22: 3.357 | L22: 21.2 | M22: 7000 | N22: Spark Ignition | O22: 8887 | P22: 272 | Q22: 0 | R22: 0 | S22: =ASTM(IF($C$6>2023,SUM(P22:Q22)/SUM($P$22:$Q$26),SUM(P22:R22)/SUM($P$22:$R$26)),4) -> 0.1848 | T22: ='ADCO2 Calcs'!AJ9 -> 420 | U22: =ASTM(SUMPRODUCT(S22:S26,T22:T26),1) -> 451.7 | V22: =ASTM(IF($C$6>2023,SUM(P22:Q25)/SUM($P$18:$Q$26),SUM(P22:R25)/SUM($P$18:$R$26)),4) -> 0.0476 | X22: Yes | Y22: B022/00 | AG22: 0 | AH22: =IF(AG22="",0, ASTM(AG22*SUM(P22:Q22)*150000/1000000,0)) -> 0 | AI22: 0 | AJ22: =ASTM(AG22/O22,4)*150000*SUM(P22:Q22) -> 0 | AK22: ADC | AQ22: =ASTM(T22*1.1,0) -> 462
B23: 2500 Pickup-Trim Level A 4-door Cab | G23: 9 | H23: 2wd | I23: 3.6L | J23: L8 | K23: 3.357 | L23: 20.7 | M23: 7500 | N23: Spark Ignition | O23: 8887 | P23: 104 | Q23: 0 | R23: 0 | S23: =ASTM(IF($C$6>2023,SUM(P23:Q23)/SUM($P$22:$Q$26),SUM(P23:R23)/SUM($P$22:$R$26)),4) -> 0.0707 | T23: ='ADCO2 Calcs'!AJ10 -> 432 | X23: Yes | Y23: B022/00 | AG23: 0 | AH23: =IF(AG23="",0, ASTM(AG23*SUM(P23:Q23)*150000/1000000,0)) -> 0 | AI23: 0 | AJ23: =ASTM(AG23/O23,4)*150000*SUM(P23:Q23) -> 0 | AK23: ADC | AQ23: =ASTM(T23*1.1,0) -> 475
B24: 2500 Pickup-Trim Level B, C 4-door (20" Tire) | G24: 10 | H24: 2wd | I24: 3.6L | J24: L8 | K24: 3.357 | L24: 21.3 | M24: 7500 | N24: Spark Ignition | O24: 8887 | P24: 408 | Q24: 0 | R24: 0 | S24: =ASTM(IF($C$6>2023,SUM(P24:Q24)/SUM($P$22:$Q$26),SUM(P24:R24)/SUM($P$22:$R$26)),4) -> 0.2772 | T24: =ASTM(AO24*0.55+AP24*0.45,1) -> 438.8 | X24: No | Y24: NA | AG24: 0 | AH24: =IF(AG24="",0, ASTM(AG24*SUM(P24:Q24)*150000/1000000,0)) -> 0 | AI24: 0 | AJ24: =ASTM(AG24/O24,4)*150000*SUM(P24:Q24) -> 0 | AK24: 8 | AL24: B022/00 | AM24: LXXX1003945X | AN24: LXXX1003945X | AO24: 549 | AP24: 304 | AQ24: =ASTM(T24*1.1,0) -> 483
B25: 2500 Pickup-Trim Level D Extended Cab | G25: 11 | H25: 4wd | I25: 3.6L | J25: L8 | K25: 3.357 | L25: 23.9 | M25: 7500 | N25: Spark Ignition | O25: 8887 | P25: 688 | Q25: 0 | R25: 0 | S25: =ASTM(IF($C$6>2023,SUM(P25:Q25)/SUM($P$22:$Q$26),SUM(P25:R25)/SUM($P$22:$R$26)),4) -> 0.4674 | T25: =ASTM((0.55*ASTM(0.5*AO25+0.5*AO26,1)+0.45*AP25),1) -> 474.8 | X25: No | Y25: NA | AG25: 0 | AH25: =IF(AG25="",0, ASTM(AG25*SUM(P25:Q25)*150000/1000000,0)) -> 0 | AI25: 0 | AJ25: =ASTM(AG25/O25,4)*150000*SUM(P25:Q25) -> 0 | AK25: 9 | AL25: B020/02 | AM25: LXXX1003941X | AN25: LXXX1003941X | AO25: 575 | AP25: 345 | AQ25: =ASTM(T25*1.1,0) -> 522
AH26: =IF(AG26="",0, ASTM(AG26*SUM(P26:Q26)*150000/1000000,0)) -> 0 | AM26: LXXX1003944X | AO26: 587
B27: 2500 Pickup-Trim Level A Extended Cab | C27: NXXXD04.0ZZZ | D27: AA-10 | E27: 3 | F27: 4* | G27: 12 | H27: 2wd | I27: 4.0L-Turbo | J27: L6 | K27: 3.916 | L27: 23.5 | M27: 7500 | N27: Compression Ignition | O27: =IF(N27="","",IF(N27="Spark Ignition",8887,10180)) -> 10180 | P27: 80 | Q27: 0 | R27: 0 | S27: =ASTM(IF($C$6>2023,SUM(P27:Q27)/SUM($P$27:$Q$32),SUM(P27:R27)/SUM($P$27:$R$32)),4) -> 0.0386 | T27: =ASTM(AO27*0.55+AP27*0.45,1) -> 430 | U27: =ASTM(SUMPRODUCT(S27:S32,T27:T32),1) -> 427.6 | V27: 1 | W27: =ASTM(U27,1) -> 427.6 | X27: No | Y27: NA | Z27: =(IF($C$6>2023,SUM(P27:Q32)*W27,SUM(P27:R32)*W27)) -> 885987.2 | AA27: 0.05 | AB27: 0.05 | AC27: =ASTM(W27/O27*100,3) -> 4.2 | AD27: =(IF($C$6>2023,SUM(P27:Q32)*AC27,SUM(P27:R32)*AC27)) -> 8702.4 | AE27: =ASTM(IF(AA27>0.05,-1*(AA27-0.05)*298*SUM(P27:R30)*150000/1000000,0),0) -> 0 | AF27: =ASTM(IF(AB27>0.05,-1*(AB27-0.05)*35*SUM(P27:R30)*150000/1000000,0),0) -> 0 | AG27: 0 | AH27: =IF(AG27="",0, ASTM(AG27*SUM(P27:Q27)*150000/1000000,0)) -> 0 | AI27: =IF(AG27="",0,AG27/O27*100) -> 0 | AJ27: =ASTM(AG27/O27,4)*150000*SUM(P27:Q27) -> 0 | AK27: 10 | AL27: G57/02 | AM27: LXXX1004581X | AN27: LXXX1004581X | AO27: 542 | AP27: 293 | AQ27: =ASTM(T27*1.1,0) -> 473
B28: 2500 Pickup-Trim Level A Short Cab | G28: 13 | H28: 2wd | I28: 4.0L-Turbo | J28: L6 | K28: 3.916 | L28: 23.9 | M28: 7500 | N28: Compression Ignition | O28: 10180 | P28: 8 | Q28: 0 | R28: 0 | S28: =ASTM(IF($C$6>2023,SUM(P28:Q28)/SUM($P$27:$Q$32),SUM(P28:R28)/SUM($P$27:$R$32)),4) -> 0.0039 | T28: ='ADCO2 Calcs'!AJ11 -> 418 | X28: Yes | Y28: G12/00 | AG28: 0 | AH28: =IF(AG28="",0, ASTM(AG28*SUM(P28:Q28)*150000/1000000,0)) -> 0 | AI28: 0 | AJ28: =ASTM(AG28/O28,4)*150000*SUM(P28:Q28) -> 0 | AK28: ADC | AQ28: =ASTM(T28*1.1,0) -> 460
B29: 2500 Pickup-Trim Level A 4-door Cab | G29: 14 | H29: 2wd | I29: 4.0L-Turbo | J29: L6 | K29: 3.916 | L29: 22.9 | M29: 8000 | N29: Compression Ignition | O29: 10180 | P29: 32 | Q29: 0 | R29: 0 | S29: =ASTM(IF($C$6>2023,SUM(P29:Q29)/SUM($P$27:$Q$32),SUM(P29:R29)/SUM($P$27:$R$32)),4) -> 0.0154 | T29: =ASTM(AO29*0.55+AP29*0.45,1) -> 427.2 | X29: No | Y29: NA | AG29: 0 | AH29: =IF(AG29="",0, ASTM(AG29*SUM(P29:Q29)*150000/1000000,0)) -> 0 | AI29: 0 | AJ29: =ASTM(AG29/O29,4)*150000*SUM(P29:Q29) -> 0 | AK29: 11 | AL29: G12/00 | AM29: LXXX1004580X | AN29: LXXX1004580X | AO29: 537 | AP29: 293 | AQ29: =ASTM(T29*1.1,0) -> 470
B30: 2500 Pickup-Trim Level B 4-door Cab | G30: 15 | H30: 2wd | I30: 4.0L-Turbo | J30: L6 | K30: 3.916 | L30: 23.6 | M30: 8000 | N30: Compression Ignition | O30: 10180 | P30: 16 | Q30: 0 | R30: 0 | S30: =ASTM(IF($C$6>2023,SUM(P30:Q30)/SUM($P$27:$Q$32),SUM(P30:R30)/SUM($P$27:$R$32)),4) -> 0.0077 | T30: =ASTM(AO30*0.55+AP30*0.45,1) -> 434 | X30: No | Y30: NA | AG30: 0 | AH30: =IF(AG30="",0, ASTM(AG30*SUM(P30:Q30)*150000/1000000,0)) -> 0 | AI30: 0 | AJ30: =ASTM(AG30/O30,4)*150000*SUM(P30:Q30) -> 0 | AK30: 12 | AL30: G57/03 | AM30: LXXX1004581X | AN30: LXXX1004581X | AO30: 546 | AP30: 297 | AQ30: =ASTM(T30*1.1,0) -> 477
B31: 2500 Pickup-Trim Level B Extended Cab | G31: 16 | H31: 2wd | I31: 4.0L-Turbo | J31: L6 | K31: 3.916 | L31: 24 | M31: 8000 | N31: Compression Ignition | O31: 10180 | P31: 8 | Q31: 0 | R31: 0 | S31: =ASTM(IF($C$6>2023,SUM(P31:Q31)/SUM($P$27:$Q$32),SUM(P31:R31)/SUM($P$27:$R$32)),4) -> 0.0039 | T31: ='ADCO2 Calcs'!AJ12 -> 437 | X31: Yes | Y31: G57/03 | AG31: 0 | AH31: =IF(AG31="",0, ASTM(AG31*SUM(P31:Q31)*150000/1000000,0)) -> 0 | AI31: 0 | AJ31: =ASTM(AG31/O31,4)*150000*SUM(P31:Q31) -> 0 | AK31: ADC | AQ31: =ASTM(T31*1.1,0) -> 481
B32: 2500 Pickup-Trim Level B 4-door Cab | D32: AA-20 | G32: 17 | H32: 4wd | I32: 4.0L-Turbo | J32: L6 | K32: 3.916 | L32: 24.4 | M32: 8000 | N32: Compression Ignition | O32: 10180 | P32: 1928 | Q32: 0 | R32: 0 | S32: =ASTM(IF($C$6>2023,SUM(P32:Q32)/SUM($P$27:$Q$32),SUM(P32:R32)/SUM($P$27:$R$32)),4) -> 0.9305 | T32: =ASTM(AO32*0.55+AP32*0.45,1) -> 427.5 | X32: No | Y32: NA | AG32: 0 | AH32: =IF(AG32="",0, ASTM(AG32*SUM(P32:Q32)*150000/1000000,0)) -> 0 | AI32: 0 | AJ32: =ASTM(AG32/O32,4)*150000*SUM(P32:Q32) -> 0 | AK32: 13 | AL32: G12/01 | AM32: LXXX1004580X | AN32: LXXX1004580X | AO32: 531 | AP32: 301 | AQ32: =ASTM(T32*1.1,0) -> 470
D33: * Configuration number is combined because actual engine and ECM is one specification in spite of two engine codes.

Sheet Adv Tech std calcs
B1: Purpose and Scope of this Guidance Document
G2: This document was prepared by EPA's Office of Transportation and Air Quality (OTAQ). It is intended to aid regulated parties in reporting fleet average Greenhouse Gas (GHG), Corporate Average Fuel Consumption (CAFC) values and calculating AB&T fleet average credits for heavy-duty class 2b and 3 vehicles, ref. 40 CFR 86.1819-14 and 49 CFR 535.5(a), 535.6(a), 535.7. It contains EPA's recommended format for manufacturers to report to EPA their end-of-year GHG and CAFC calculations, credits and other information with respect to the implementation of the Phase 2 Greenhouse Gas Emissions and Fuel Efficiency Standards for Heavy-Duty Class 2b and 3 Pickup Trucks and Vans, ref. 81 FR 73478, October 25, 2016, including any subsequent revisions to those requirements. The use of this document is purely optional. This document does not in any way alter or waive the requirements in EPA regulations. Although the calculations and formulas provided in this document are intended to assist manufacturers in the implementation of EPA regulations, this document does not establish or change the legal rights or obligations of manufacturers or others in complying with EPA regulations, including 40 CFR 86.1865-12. If an error or other discrepancy is found in this document, including the calculation formulas, please contact your EPA certification team member. The regulations take precedence.
B4: Final HD Class 2b/3 CAFC/GHG Model Year Report - CO2 and FC Fleet Average Standards Calculations for Advanced Technology Vehicles (EVs, PHEVs, Fuel Cell Vehicles)
C5: Manufacturer: | D5: ABC HD 2b/3 Truck Co.
C6: Model Year: | D6: 2022 | E6: =IF(D6='Adv Tech Fleet ave calcs'!D6,"","ERROR--Model Year of Advanced Technology Standard calculation tab doesn't match the Model Year of the Advanced Technology Vehicle Fleet ave Calculation tab;") -> 
C7: Report: | D7: HD 2b/3 Conventional Fleet Final Model Year Report
C8: EPA Phase 2 GHG Standards: | D8: ref. 40 CFR 86.1819-14(a)(2) or 86.1819-14(k)(4)(iii) Table 3;
C9: NHTSA Phase 2 FC Standards: | D9: ref. 49 CFR 535.5(a)(2)(ii) Table 6
D11: AA. Total production volume | E11: CC. Fleet target CO2 (gpm) | F11: FF. Fleet target FC (gal/100 mile)
C12: Electric Vehicles: | D12: =IF($D$6>2023, SUM(AB19:AC19), SUM(AB19:AC19)) -> 46944 | E12: =ASTM(AE19/D12,0) -> 431 | F12: =ASTM(AF19/D12,3) -> 4.229 | G12: =IF(D12='Adv Tech Fleet ave calcs'!D9,"","ERROR--Total EV production volume of the Advanced Technology Fleet std calculation tab doesn't match the Total EV production volume of the Advanced Technology Fleet ave Calculation tab;") -> 
C13: PHEVs: | D13: =IF($D$6>2023, SUM(AB20:AC20), SUM(AB20:AC20)) -> 29432 | E13: =ASTM(AE20/D13,0) -> 483 | F13: =ASTM(AF20/D13,3) -> 5.435 | G13: =IF(D13='Adv Tech Fleet ave calcs'!D10,"","ERROR--Total PHEV production volume of the Advanced Technology Fleet std calculation tab doesn't match the Total PHEV production volume of the Advanced Technology Fleet ave Calculation tab;") -> 
C14: Fuel Cell Vehicles: | D14: =IF($D$6>2023, SUM(AB21:AC21), SUM(AB21:AC21)) -> 2072 | E14: =ASTM(AE21/D14,0) -> 496 | F14: =ASTM(AF21/D14,3) -> 4.868 | G14: =IF(D14='Adv Tech Fleet ave calcs'!D11,"","ERROR--Total FCV production volume of the Advanced Technology Fleet std calculation tab doesn't match the Total FCV production volume of the Advanced Technology Fleet ave Calculation tab;") -> 
B16: Vehicle & Subconfiguration Information | O16: CO2 and FC Target Standard Information | AB16: Production Volumes | AG16: AG. Comments
B17: B. Type of Advanced Technology Vehicle: Electric Vehicle (EV), Plug-In Hybrid Eectric Vehicle (PHEV) or Fuel Cell Vehicle (FCV) | C17: C. Truck Line Name & Description | D17: D. Test Group | E17: E. Engine Code | F17: F. Base level | G17: G. Config. Group | H17: H. Sub- config. Group Name | I17: I. 2 or 4 Wheel Drive | J17: J. Engine | K17: K. Trans Class | L17: L. Final Drive Ratio (front axle) | M17: M. Final Drive Ratio (rear axle) | N17: N. Road Load HP | O17: O. GVWR | P17: P. Curb Weight | Q17: Q. GCWR | R17: R. ETW (ALVW) | S17: S. Work Factor | T17: T. Engine: Spark Ignition, Compression Ignition or Electric Vehicle/Fuel Cell Vehicle | U17: U. A Target Coef | V17: V. B Target Coef | W17: W. CO2 Target Standard | X17: X. C Target Coef | Y17: Y. D Target Coef | Z17: Z. Conversion Factor | AA17: AA. FC Target Standard | AB17: AB. Production volume under Production volume under 40 CFR 86.1819-14(a) | AC17: AC. Production volume under 40 CFR 86.1819-14(j) (incomplete & sister vehicles) | AD17: AD. Loose Engine production volume under 86.1819-14(k)(8) (must be zero for this Advanced Technology Vehicle template) | AE17: AE. Vol x Target CO2 Standard | AF17: AF. Vol x Target FC Standard
O18: lbs. | P18: lbs. | Q18: lbs. | R18: lbs. | W18: gpm | Z18: gCO2/gal | AA18: gal/100 miles
AA19: EVs: | AB19: =SUM(AB22:AB27) -> 46944 | AC19: =SUM(AC22:AC27) -> 0 | AD19: =IF($D$6>2023,0, SUM(AD22:AD27)) -> 0 | AE19: =SUM(AE22:AE27) -> 20213144 | AF19: =SUM(AF22:AF27) -> 198518.352
AA20: PHEVs: | AB20: =SUM(AB28:AB34) -> 29432 | AC20: =SUM(AC28:AC34) -> 0 | AD20: =IF($D$6>2023,0, SUM(AD28:AD34)) -> 0 | AE20: =SUM(AE28:AE34) -> 14222696 | AF20: =SUM(AF28:AF34) -> 159976.096
AA21: FCVs: | AB21: =SUM(AB35:AB40) -> 2072 | AC21: =SUM(AC35:AC40) -> 0 | AD21: =IF($D$6>2023,0, SUM(AD35:AD40)) -> 0 | AE21: =SUM(AE35:AE40) -> 1026752 | AF21: =SUM(AF35:AF40) -> 10085.544
B22: EV | C22: 3500 Electric Pickup Trim Level A | D22: NXXXD00.0XXX | E22: XX-1 | F22: 1 | G22: 1 | H22: 1 | I22: 4wd | J22: 0.0L | K22: Auto(CVT) | L22: 13.26 | M22: 10.49 | N22: 28.6 | O22: 10550 | P22: 9175 | Q22: 18050 | R22: 10000 | S22: =ASTM(0.75*(O22-P22+IF(I22="4wd",500, 0))+0.25*(Q22-O22),0) -> 3281 | T22: EV/FCV-only | U22: =VLOOKUP(CONCATENATE($D$6,"_",$T22),'CFR Constants'!$A$4:$E$39,2,FALSE) -> 0.0395 | V22: =VLOOKUP(CONCATENATE($D$6,"_",$T22),'CFR Constants'!$A$4:$E$39,3,FALSE) -> 304 | W22: =IF(OR(ISERROR(U22),ISERROR(S22),ISERROR(V22)),1/0,ASTM(U22*S22+V22,0)) -> 434 | X22: =VLOOKUP(CONCATENATE($D$6,"_",$T22),'CFR Constants'!$A$4:$E$39,4,FALSE) -> 0.000388 | Y22: =VLOOKUP(CONCATENATE($D$6,"_",$T22),'CFR Constants'!$A$4:$E$39,5,FALSE) -> 2.986 | Z22: =IF(T22="","",IF(T22="Spark Ignition",8887,10180)) -> 10180 | AA22: =IF(OR(ISERROR(X22),ISERROR(S22),ISERROR(Y22)),1/0,ASTM(X22*S22+Y22,3)) -> 4.259 | AB22: 18736 | AC22: 0 | AD22: 0 | AE22: =IF(T22="","",SUM(AB22:AC22)*W22) -> 8131424 | AF22: =IF(T22="","",SUM(AB22:AC22)*AA22) -> 79796.624
B23: EV | C23: 3500 Electric Pickup Trim Level B | I23: 4wd | J23: 0.0L | K23: Auto(CVT) | L23: 13.26 | M23: 10.49 | N23: 28.6 | O23: 10550 | P23: 9650 | Q23: 18050 | R23: 10000 | S23: =ASTM(0.75*(O23-P23+IF(I23="4wd",500, 0))+0.25*(Q23-O23),0) -> 2925 | T23: EV/FCV-only | U23: =VLOOKUP(CONCATENATE($D$6,"_",$T23),'CFR Constants'!$A$4:$E$39,2,FALSE) -> 0.0395 | V23: =VLOOKUP(CONCATENATE($D$6,"_",$T23),'CFR Constants'!$A$4:$E$39,3,FALSE) -> 304 | W23: =IF(OR(ISERROR(U23),ISERROR(S23),ISERROR(V23)),1/0,ASTM(U23*S23+V23,0)) -> 420 | X23: =VLOOKUP(CONCATENATE($D$6,"_",$T23),'CFR Constants'!$A$4:$E$39,4,FALSE) -> 0.000388 | Y23: =VLOOKUP(CONCATENATE($D$6,"_",$T23),'CFR Constants'!$A$4:$E$39,5,FALSE) -> 2.986 | Z23: 10180 | AA23: =IF(OR(ISERROR(X23),ISERROR(S23),ISERROR(Y23)),1/0,ASTM(X23*S23+Y23,3)) -> 4.121 | AB23: 7928 | AC23: 0 | AD23: 0 | AE23: =IF(T23="","",SUM(AB23:AC23)*W23) -> 3329760 | AF23: =IF(T23="","",SUM(AB23:AC23)*AA23) -> 32671.288
B24: EV | C24: 3500 Electric Pickup Trim Level C | I24: 4wd | J24: 0.0L | K24: Auto(CVT) | L24: 13.26 | M24: 10.49 | N24: 28.6 | O24: 10550 | P24: 9400 | Q24: 18050 | R24: 10000 | S24: =ASTM(0.75*(O24-P24+IF(I24="4wd",500, 0))+0.25*(Q24-O24),0) -> 3112 | T24: EV/FCV-only | U24: =VLOOKUP(CONCATENATE($D$6,"_",$T24),'CFR Constants'!$A$4:$E$39,2,FALSE) -> 0.0395 | V24: =VLOOKUP(CONCATENATE($D$6,"_",$T24),'CFR Constants'!$A$4:$E$39,3,FALSE) -> 304 | W24: =IF(OR(ISERROR(U24),ISERROR(S24),ISERROR(V24)),1/0,ASTM(U24*S24+V24,0)) -> 427 | X24: =VLOOKUP(CONCATENATE($D$6,"_",$T24),'CFR Constants'!$A$4:$E$39,4,FALSE) -> 0.000388 | Y24: =VLOOKUP(CONCATENATE($D$6,"_",$T24),'CFR Constants'!$A$4:$E$39,5,FALSE) -> 2.986 | Z24: 10180 | AA24: =IF(OR(ISERROR(X24),ISERROR(S24),ISERROR(Y24)),1/0,ASTM(X24*S24+Y24,3)) -> 4.193 | AB24: 1800 | AC24: 0 | AD24: 0 | AE24: 768600 | AF24: 7547.4
B25: EV | C25: 3500 Electric SUV Trim Level A | H25: 2 | I25: 4wd | J25: 0.0L | K25: Auto(CVT) | L25: 13.26 | M25: 10.49 | N25: 28.1 | O25: 10400 | P25: 9063 | Q25: 17900 | R25: 9500 | S25: =ASTM(0.75*(O25-P25+IF(I25="4wd",500, 0))+0.25*(Q25-O25),0) -> 3253 | T25: EV/FCV-only | U25: =VLOOKUP(CONCATENATE($D$6,"_",$T25),'CFR Constants'!$A$4:$E$39,2,FALSE) -> 0.0395 | V25: =VLOOKUP(CONCATENATE($D$6,"_",$T25),'CFR Constants'!$A$4:$E$39,3,FALSE) -> 304 | W25: =IF(OR(ISERROR(U25),ISERROR(S25),ISERROR(V25)),1/0,ASTM(U25*S25+V25,0)) -> 432 | X25: =VLOOKUP(CONCATENATE($D$6,"_",$T25),'CFR Constants'!$A$4:$E$39,4,FALSE) -> 0.000388 | Y25: =VLOOKUP(CONCATENATE($D$6,"_",$T25),'CFR Constants'!$A$4:$E$39,5,FALSE) -> 2.986 | Z25: 10180 | AA25: =IF(OR(ISERROR(X25),ISERROR(S25),ISERROR(Y25)),1/0,ASTM(X25*S25+Y25,3)) -> 4.248 | AB25: 13872 | AC25: 0 | AD25: 0 | AE25: 5992704 | AF25: 58928.256
B26: EV | C26: 3500 Electric SUV Trim Level B | I26: 4wd | J26: 0.0L | K26: Auto(CVT) | L26: 13.26 | M26: 10.49 | N26: 28.1 | O26: 10400 | P26: 9063 | Q26: 17900 | R26: 9500 | S26: =ASTM(0.75*(O26-P26+IF(I26="4wd",500, 0))+0.25*(Q26-O26),0) -> 3253 | T26: EV/FCV-only | U26: =VLOOKUP(CONCATENATE($D$6,"_",$T26),'CFR Constants'!$A$4:$E$39,2,FALSE) -> 0.0395 | V26: =VLOOKUP(CONCATENATE($D$6,"_",$T26),'CFR Constants'!$A$4:$E$39,3,FALSE) -> 304 | W26: =IF(OR(ISERROR(U26),ISERROR(S26),ISERROR(V26)),1/0,ASTM(U26*S26+V26,0)) -> 432 | X26: =VLOOKUP(CONCATENATE($D$6,"_",$T26),'CFR Constants'!$A$4:$E$39,4,FALSE) -> 0.000388 | Y26: =VLOOKUP(CONCATENATE($D$6,"_",$T26),'CFR Constants'!$A$4:$E$39,5,FALSE) -> 2.986 | Z26: 10180 | AA26: =IF(OR(ISERROR(X26),ISERROR(S26),ISERROR(Y26)),1/0,ASTM(X26*S26+Y26,3)) -> 4.248 | AB26: 944 | AC26: 0 | AD26: 0 | AE26: 407808 | AF26: 4010.112
B27: EV | C27: 3500 Electric SUV Trim Level C | H27: 3 | I27: 4wd | J27: 0.0L | K27: Auto(CVT) | L27: 13.26 | M27: 10.49 | N27: 28.1 | O27: 10400 | P27: 9063 | Q27: 17900 | R27: 9500 | S27: =ASTM(0.75*(O27-P27+IF(I27="4wd",500, 0))+0.25*(Q27-O27),0) -> 3253 | T27: EV/FCV-only | U27: =VLOOKUP(CONCATENATE($D$6,"_",$T27),'CFR Constants'!$A$4:$E$39,2,FALSE) -> 0.0395 | V27: =VLOOKUP(CONCATENATE($D$6,"_",$T27),'CFR Constants'!$A$4:$E$39,3,FALSE) -> 304 | W27: =IF(OR(ISERROR(U27),ISERROR(S27),ISERROR(V27)),1/0,ASTM(U27*S27+V27,0)) -> 432 | X27: =VLOOKUP(CONCATENATE($D$6,"_",$T27),'CFR Constants'!$A$4:$E$39,4,FALSE) -> 0.000388 | Y27: =VLOOKUP(CONCATENATE($D$6,"_",$T27),'CFR Constants'!$A$4:$E$39,5,FALSE) -> 2.986 | Z27: 10180 | AA27: =IF(OR(ISERROR(X27),ISERROR(S27),ISERROR(Y27)),1/0,ASTM(X27*S27+Y27,3)) -> 4.248 | AB27: 3664 | AC27: 0 | AD27: 0 | AE27: 1582848 | AF27: 15564.672
B28: PHEV | C28: 3500 SUV Trim Level A (PHEV) | D28: NXXXD02.0YYY | E28: YY-1 | F28: 2 | G28: 2 | H28: 4 | I28: 2wd | J28: 2.0L | K28: Auto (S8) | L28: 2.91 | M28: NA | N28: 26.4 | O28: 10100 | P28: =2*R28-O28 -> 6900 | Q28: 16000 | R28: 8500 | S28: =ASTM(0.75*(O28-P28+IF(I28="4wd",500, 0))+0.25*(Q28-O28),0) -> 3875 | T28: Spark Ignition | U28: =VLOOKUP(CONCATENATE($D$6,"_",$T28),'CFR Constants'!$A$4:$E$39,2,FALSE) -> 0.0418 | V28: =VLOOKUP(CONCATENATE($D$6,"_",$T28),'CFR Constants'!$A$4:$E$39,3,FALSE) -> 322 | W28: =IF(OR(ISERROR(U28),ISERROR(S28),ISERROR(V28)),1/0,ASTM(U28*S28+V28,0)) -> 484 | X28: =VLOOKUP(CONCATENATE($D$6,"_",$T28),'CFR Constants'!$A$4:$E$39,4,FALSE) -> 0.0004703 | Y28: =VLOOKUP(CONCATENATE($D$6,"_",$T28),'CFR Constants'!$A$4:$E$39,5,FALSE) -> 3.623 | Z28: =IF(T28="","",IF(T28="Spark Ignition",8887,10180)) -> 8887 | AA28: =IF(OR(ISERROR(X28),ISERROR(S28),ISERROR(Y28)),1/0,ASTM(X28*S28+Y28,3)) -> 5.445 | AB28: 1656 | AC28: 0 | AD28: 0 | AE28: 801504 | AF28: 9016.92 | AG28: Grouped subconfigs & calc'd curb wt = (2 x ETW - GVWR) per 40 CFR 86.1819-14(a)(4)(i);
B29: PHEV | C29: 3500 SUV Trim Level B (PHEV) | H29: 5 | I29: 2wd | J29: 2.0L | K29: Auto (S8) | L29: 2.91 | M29: NA | N29: 28 | O29: 10100 | P29: =2*R29-O29 -> 6900 | Q29: 16000 | R29: 8500 | S29: =ASTM(0.75*(O29-P29+IF(I29="4wd",500, 0))+0.25*(Q29-O29),0) -> 3875 | T29: Spark Ignition | U29: =VLOOKUP(CONCATENATE($D$6,"_",$T29),'CFR Constants'!$A$4:$E$39,2,FALSE) -> 0.0418 | V29: =VLOOKUP(CONCATENATE($D$6,"_",$T29),'CFR Constants'!$A$4:$E$39,3,FALSE) -> 322 | W29: =IF(OR(ISERROR(U29),ISERROR(S29),ISERROR(V29)),1/0,ASTM(U29*S29+V29,0)) -> 484 | X29: =VLOOKUP(CONCATENATE($D$6,"_",$T29),'CFR Constants'!$A$4:$E$39,4,FALSE) -> 0.0004703 | Y29: =VLOOKUP(CONCATENATE($D$6,"_",$T29),'CFR Constants'!$A$4:$E$39,5,FALSE) -> 3.623 | Z29: 8887 | AA29: =IF(OR(ISERROR(X29),ISERROR(S29),ISERROR(Y29)),1/0,ASTM(X29*S29+Y29,3)) -> 5.445 | AB29: 1424 | AC29: 0 | AD29: 0 | AE29: 689216 | AF29: 7753.68 | AG29: Grouped subconfigs & calc'd curb wt = (2 x ETW - GVWR) per 40 CFR 86.1819-14(a)(4)(i);
B30: PHEV | C30: 3500 SUV Trim Level C (PHEV) | H30: 6 | I30: 2wd | J30: 2.0L | K30: Auto (S8) | L30: 2.91 | M30: NA | N30: 29.9 | O30: 11400 | P30: 7809 | Q30: 16000 | R30: 9500 | S30: =ASTM(0.75*(O30-P30+IF(I30="4wd",500, 0))+0.25*(Q30-O30),0) -> 3843 | T30: Spark Ignition | U30: =VLOOKUP(CONCATENATE($D$6,"_",$T30),'CFR Constants'!$A$4:$E$39,2,FALSE) -> 0.0418 | V30: =VLOOKUP(CONCATENATE($D$6,"_",$T30),'CFR Constants'!$A$4:$E$39,3,FALSE) -> 322 | W30: =IF(OR(ISERROR(U30),ISERROR(S30),ISERROR(V30)),1/0,ASTM(U30*S30+V30,0)) -> 483 | X30: =VLOOKUP(CONCATENATE($D$6,"_",$T30),'CFR Constants'!$A$4:$E$39,4,FALSE) -> 0.0004703 | Y30: =VLOOKUP(CONCATENATE($D$6,"_",$T30),'CFR Constants'!$A$4:$E$39,5,FALSE) -> 3.623 | Z30: 8887 | AA30: =IF(OR(ISERROR(X30),ISERROR(S30),ISERROR(Y30)),1/0,ASTM(X30*S30+Y30,3)) -> 5.43 | AB30: 16752 | AC30: 0 | AD30: 0 | AE30: 8091216 | AF30: 90963.36
B31: PHEV | C31: 3500 SUV Trim Level D (PHEV) | I31: 2wd | J31: 2.0L | K31: Auto (S8) | L31: 2.91 | M31: NA | N31: 28.9 | O31: 10900 | P31: 7878 | Q31: 16000 | R31: 9500 | S31: =ASTM(0.75*(O31-P31+IF(I31="4wd",500, 0))+0.25*(Q31-O31),0) -> 3542 | T31: Spark Ignition | U31: =VLOOKUP(CONCATENATE($D$6,"_",$T31),'CFR Constants'!$A$4:$E$39,2,FALSE) -> 0.0418 | V31: =VLOOKUP(CONCATENATE($D$6,"_",$T31),'CFR Constants'!$A$4:$E$39,3,FALSE) -> 322 | W31: =IF(OR(ISERROR(U31),ISERROR(S31),ISERROR(V31)),1/0,ASTM(U31*S31+V31,0)) -> 470 | X31: =VLOOKUP(CONCATENATE($D$6,"_",$T31),'CFR Constants'!$A$4:$E$39,4,FALSE) -> 0.0004703 | Y31: =VLOOKUP(CONCATENATE($D$6,"_",$T31),'CFR Constants'!$A$4:$E$39,5,FALSE) -> 3.623 | Z31: 8887 | AA31: =IF(OR(ISERROR(X31),ISERROR(S31),ISERROR(Y31)),1/0,ASTM(X31*S31+Y31,3)) -> 5.289 | AB31: 824 | AC31: 0 | AD31: 0 | AE31: 387280 | AF31: 4358.136
B32: PHEV | C32: 3500 SUV Trim Level E (PHEV) | I32: 2wd | J32: 2.0L | K32: Auto (S8) | L32: 2.91 | M32: NA | N32: 29.9 | O32: 10900 | P32: 7975 | Q32: 16000 | R32: 9500 | S32: =ASTM(0.75*(O32-P32+IF(I32="4wd",500, 0))+0.25*(Q32-O32),0) -> 3469 | T32: Spark Ignition | U32: =VLOOKUP(CONCATENATE($D$6,"_",$T32),'CFR Constants'!$A$4:$E$39,2,FALSE) -> 0.0418 | V32: =VLOOKUP(CONCATENATE($D$6,"_",$T32),'CFR Constants'!$A$4:$E$39,3,FALSE) -> 322 | W32: =IF(OR(ISERROR(U32),ISERROR(S32),ISERROR(V32)),1/0,ASTM(U32*S32+V32,0)) -> 467 | X32: =VLOOKUP(CONCATENATE($D$6,"_",$T32),'CFR Constants'!$A$4:$E$39,4,FALSE) -> 0.0004703 | Y32: =VLOOKUP(CONCATENATE($D$6,"_",$T32),'CFR Constants'!$A$4:$E$39,5,FALSE) -> 3.623 | Z32: 8887 | AA32: =IF(OR(ISERROR(X32),ISERROR(S32),ISERROR(Y32)),1/0,ASTM(X32*S32+Y32,3)) -> 5.254 | AB32: 3032 | AC32: 0 | AD32: 0 | AE32: 1415944 | AF32: 15930.128
B33: PHEV | C33: 3500 SUV Trim Level F (PHEV) | H33: 7 | I33: 2wd | J33: 2.0L | K33: Auto (S8) | L33: 2.91 | M33: NA | N33: 28.5 | O33: 10900 | P33: =2*R33-O33 -> 7100 | Q33: 16000 | R33: 9000 | S33: =ASTM(0.75*(O33-P33+IF(I33="4wd",500, 0))+0.25*(Q33-O33),0) -> 4125 | T33: Spark Ignition | U33: =VLOOKUP(CONCATENATE($D$6,"_",$T33),'CFR Constants'!$A$4:$E$39,2,FALSE) -> 0.0418 | V33: =VLOOKUP(CONCATENATE($D$6,"_",$T33),'CFR Constants'!$A$4:$E$39,3,FALSE) -> 322 | W33: =IF(OR(ISERROR(U33),ISERROR(S33),ISERROR(V33)),1/0,ASTM(U33*S33+V33,0)) -> 494 | X33: =VLOOKUP(CONCATENATE($D$6,"_",$T33),'CFR Constants'!$A$4:$E$39,4,FALSE) -> 0.0004703 | Y33: =VLOOKUP(CONCATENATE($D$6,"_",$T33),'CFR Constants'!$A$4:$E$39,5,FALSE) -> 3.623 | Z33: 8887 | AA33: =IF(OR(ISERROR(X33),ISERROR(S33),ISERROR(Y33)),1/0,ASTM(X33*S33+Y33,3)) -> 5.563 | AB33: 1088 | AC33: 0 | AD33: 0 | AE33: 537472 | AF33: 6052.544 | AG33: Grouped subconfigs & calc'd curb wt = (2 x ETW - GVWR) per 40 CFR 86.1819-14(a)(4)(i);
B34: PHEV | C34: 3500 SUV Trim Level G (PHEV) | I34: 2wd | J34: 2.0L | K34: Auto (S8) | L34: 2.91 | M34: NA | N34: 28.5 | O34: 10900 | P34: 7100 | Q34: 16000 | R34: 9000 | S34: =ASTM(0.75*(O34-P34+IF(I34="4wd",500, 0))+0.25*(Q34-O34),0) -> 4125 | T34: Spark Ignition | U34: =VLOOKUP(CONCATENATE($D$6,"_",$T34),'CFR Constants'!$A$4:$E$39,2,FALSE) -> 0.0418 | V34: =VLOOKUP(CONCATENATE($D$6,"_",$T34),'CFR Constants'!$A$4:$E$39,3,FALSE) -> 322 | W34: =IF(OR(ISERROR(U34),ISERROR(S34),ISERROR(V34)),1/0,ASTM(U34*S34+V34,0)) -> 494 | X34: =VLOOKUP(CONCATENATE($D$6,"_",$T34),'CFR Constants'!$A$4:$E$39,4,FALSE) -> 0.0004703 | Y34: =VLOOKUP(CONCATENATE($D$6,"_",$T34),'CFR Constants'!$A$4:$E$39,5,FALSE) -> 3.623 | Z34: 8887 | AA34: =IF(OR(ISERROR(X34),ISERROR(S34),ISERROR(Y34)),1/0,ASTM(X34*S34+Y34,3)) -> 5.563 | AB34: 4656 | AC34: 0 | AD34: 0 | AE34: 2300064 | AF34: 25901.328 | AG34: Grouped subconfigs & calc'd curb wt = (2 x ETW - GVWR) per 40 CFR 86.1819-14(a)(4)(i);
B35: FCV | C35: 2500 Pickup-Trim Level A Ext. Cab (FCV) | D35: NXXXD00.0ZZZ | E35: ZZ-1 | F35: 3 | G35: 3 | H35: 12 | I35: 2wd | J35: 0.0L | K35: Auto(A1) | L35: NA | M35: 3.478 | N35: 25.5 | O35: 9100 | P35: 5900 | Q35: 19450 | R35: 7500 | S35: =ASTM(0.75*(O35-P35+IF(I35="4wd",500, 0))+0.25*(Q35-O35),0) -> 4988 | T35: EV/FCV-only | U35: =VLOOKUP(CONCATENATE($D$6,"_",$T35),'CFR Constants'!$A$4:$E$39,2,FALSE) -> 0.0395 | V35: =VLOOKUP(CONCATENATE($D$6,"_",$T35),'CFR Constants'!$A$4:$E$39,3,FALSE) -> 304 | W35: =IF(OR(ISERROR(U35),ISERROR(S35),ISERROR(V35)),1/0,ASTM(U35*S35+V35,0)) -> 501 | X35: =VLOOKUP(CONCATENATE($D$6,"_",$T35),'CFR Constants'!$A$4:$E$39,4,FALSE) -> 0.000388 | Y35: =VLOOKUP(CONCATENATE($D$6,"_",$T35),'CFR Constants'!$A$4:$E$39,5,FALSE) -> 2.986 | Z35: 10180 | AA35: =IF(OR(ISERROR(X35),ISERROR(S35),ISERROR(Y35)),1/0,ASTM(X35*S35+Y35,3)) -> 4.921 | AB35: 80 | AC35: 0 | AD35: 0 | AE35: 40080 | AF35: 393.68 | AG35: Grouped subconfigs & calc'd curb wt = (2 x ETW - GVWR) per 40 CFR 86.1819-14(a)(4)(i);
B36: FCV | C36: 2500 Pickup-Trim Level A Short Cab (FCV) | H36: 13 | I36: 2wd | J36: 0.0L | K36: Auto(A1) | L36: NA | M36: 3.478 | N36: 25.9 | O36: 9100 | P36: 5900 | Q36: 19450 | R36: 7500 | S36: =ASTM(0.75*(O36-P36+IF(I36="4wd",500, 0))+0.25*(Q36-O36),0) -> 4988 | T36: EV/FCV-only | U36: =VLOOKUP(CONCATENATE($D$6,"_",$T36),'CFR Constants'!$A$4:$E$39,2,FALSE) -> 0.0395 | V36: =VLOOKUP(CONCATENATE($D$6,"_",$T36),'CFR Constants'!$A$4:$E$39,3,FALSE) -> 304 | W36: =IF(OR(ISERROR(U36),ISERROR(S36),ISERROR(V36)),1/0,ASTM(U36*S36+V36,0)) -> 501 | X36: =VLOOKUP(CONCATENATE($D$6,"_",$T36),'CFR Constants'!$A$4:$E$39,4,FALSE) -> 0.000388 | Y36: =VLOOKUP(CONCATENATE($D$6,"_",$T36),'CFR Constants'!$A$4:$E$39,5,FALSE) -> 2.986 | Z36: 10180 | AA36: =IF(OR(ISERROR(X36),ISERROR(S36),ISERROR(Y36)),1/0,ASTM(X36*S36+Y36,3)) -> 4.921 | AB36: 8 | AC36: 0 | AD36: 0 | AE36: 4008 | AF36: 39.368 | AG36: Grouped subconfigs & calc'd curb wt = (2 x ETW - GVWR) per 40 CFR 86.1819-14(a)(4)(i);
B37: FCV | C37: 2500 Pickup-Trim Level A 4-door Cab (FCV) | H37: 14 | I37: 2wd | J37: 0.0L | K37: Auto(A1) | L37: NA | M37: 3.478 | N37: 24.9 | O37: 9100 | P37: 6900 | Q37: 19450 | R37: 8000 | S37: =ASTM(0.75*(O37-P37+IF(I37="4wd",500, 0))+0.25*(Q37-O37),0) -> 4238 | T37: EV/FCV-only | U37: =VLOOKUP(CONCATENATE($D$6,"_",$T37),'CFR Constants'!$A$4:$E$39,2,FALSE) -> 0.0395 | V37: =VLOOKUP(CONCATENATE($D$6,"_",$T37),'CFR Constants'!$A$4:$E$39,3,FALSE) -> 304 | W37: =IF(OR(ISERROR(U37),ISERROR(S37),ISERROR(V37)),1/0,ASTM(U37*S37+V37,0)) -> 471 | X37: =VLOOKUP(CONCATENATE($D$6,"_",$T37),'CFR Constants'!$A$4:$E$39,4,FALSE) -> 0.000388 | Y37: =VLOOKUP(CONCATENATE($D$6,"_",$T37),'CFR Constants'!$A$4:$E$39,5,FALSE) -> 2.986 | Z37: 10180 | AA37: =IF(OR(ISERROR(X37),ISERROR(S37),ISERROR(Y37)),1/0,ASTM(X37*S37+Y37,3)) -> 4.63 | AB37: 32 | AC37: 0 | AD37: 0 | AE37: 15072 | AF37: 148.16 | AG37: Grouped subconfigs & calc'd curb wt = (2 x ETW - GVWR) per 40 CFR 86.1819-14(a)(4)(i);
B38: FCV | C38: 2500 Pickup-Trim Level B 4-door Cab (FCV) | H38: 15 | I38: 2wd | J38: 0.0L | K38: Auto(A1) | L38: NA | M38: 3.478 | N38: 25.6 | O38: 9100 | P38: 6900 | Q38: 19450 | R38: 8000 | S38: =ASTM(0.75*(O38-P38+IF(I38="4wd",500, 0))+0.25*(Q38-O38),0) -> 4238 | T38: EV/FCV-only | U38: =VLOOKUP(CONCATENATE($D$6,"_",$T38),'CFR Constants'!$A$4:$E$39,2,FALSE) -> 0.0395 | V38: =VLOOKUP(CONCATENATE($D$6,"_",$T38),'CFR Constants'!$A$4:$E$39,3,FALSE) -> 304 | W38: =IF(OR(ISERROR(U38),ISERROR(S38),ISERROR(V38)),1/0,ASTM(U38*S38+V38,0)) -> 471 | X38: =VLOOKUP(CONCATENATE($D$6,"_",$T38),'CFR Constants'!$A$4:$E$39,4,FALSE) -> 0.000388 | Y38: =VLOOKUP(CONCATENATE($D$6,"_",$T38),'CFR Constants'!$A$4:$E$39,5,FALSE) -> 2.986 | Z38: 10180 | AA38: =IF(OR(ISERROR(X38),ISERROR(S38),ISERROR(Y38)),1/0,ASTM(X38*S38+Y38,3)) -> 4.63 | AB38: 16 | AC38: 0 | AD38: 0 | AE38: 7536 | AF38: 74.08 | AG38: Grouped subconfigs & calc'd curb wt = (2 x ETW - GVWR) per 40 CFR 86.1819-14(a)(4)(i);
B39: FCV | C39: 2500 Pickup-Trim Level B Ext. Cab (FCV) | H39: 16 | I39: 2wd | J39: 0.0L | K39: Auto(A1) | L39: NA | M39: 3.478 | N39: 26 | O39: 9100 | P39: 6900 | Q39: 19450 | R39: 8000 | S39: =ASTM(0.75*(O39-P39+IF(I39="4wd",500, 0))+0.25*(Q39-O39),0) -> 4238 | T39: EV/FCV-only | U39: =VLOOKUP(CONCATENATE($D$6,"_",$T39),'CFR Constants'!$A$4:$E$39,2,FALSE) -> 0.0395 | V39: =VLOOKUP(CONCATENATE($D$6,"_",$T39),'CFR Constants'!$A$4:$E$39,3,FALSE) -> 304 | W39: =IF(OR(ISERROR(U39),ISERROR(S39),ISERROR(V39)),1/0,ASTM(U39*S39+V39,0)) -> 471 | X39: =VLOOKUP(CONCATENATE($D$6,"_",$T39),'CFR Constants'!$A$4:$E$39,4,FALSE) -> 0.000388 | Y39: =VLOOKUP(CONCATENATE($D$6,"_",$T39),'CFR Constants'!$A$4:$E$39,5,FALSE) -> 2.986 | Z39: 10180 | AA39: =IF(OR(ISERROR(X39),ISERROR(S39),ISERROR(Y39)),1/0,ASTM(X39*S39+Y39,3)) -> 4.63 | AB39: 8 | AC39: 0 | AD39: 0 | AE39: 3768 | AF39: 37.04 | AG39: Grouped subconfigs & calc'd curb wt = (2 x ETW - GVWR) per 40 CFR 86.1819-14(a)(4)(i);
B40: FCV | C40: 2500 Pickup-Trim Level A 4-door Cab (FCV) | H40: 17 | I40: 4wd | J40: 0.0L | K40: Auto(A1) | L40: NA | M40: 3.478 | N40: 26.4 | O40: 9300 | P40: 6700 | Q40: 19450 | R40: 8000 | S40: =ASTM(0.75*(O40-P40+IF(I40="4wd",500, 0))+0.25*(Q40-O40),0) -> 4862 | T40: EV/FCV-only | U40: =VLOOKUP(CONCATENATE($D$6,"_",$T40),'CFR Constants'!$A$4:$E$39,2,FALSE) -> 0.0395 | V40: =VLOOKUP(CONCATENATE($D$6,"_",$T40),'CFR Constants'!$A$4:$E$39,3,FALSE) -> 304 | W40: =IF(OR(ISERROR(U40),ISERROR(S40),ISERROR(V40)),1/0,ASTM(U40*S40+V40,0)) -> 496 | X40: =VLOOKUP(CONCATENATE($D$6,"_",$T40),'CFR Constants'!$A$4:$E$39,4,FALSE) -> 0.000388 | Y40: =VLOOKUP(CONCATENATE($D$6,"_",$T40),'CFR Constants'!$A$4:$E$39,5,FALSE) -> 2.986 | Z40: 10180 | AA40: =IF(OR(ISERROR(X40),ISERROR(S40),ISERROR(Y40)),1/0,ASTM(X40*S40+Y40,3)) -> 4.872 | AB40: 1928 | AC40: 0 | AD40: 0 | AE40: 956288 | AF40: 9393.216 | AG40: Grouped subconfigs & calc'd curb wt = (2 x ETW - GVWR) per 40 CFR 86.1819-14(a)(4)(i);
R44: All ETWs look OK (based on curb wt & GVWR)

Sheet Adv Tech Fleet ave calcs
B1: Purpose and Scope of this Guidance Document
O2: This document was prepared by EPA's Office of Transportation and Air Quality (OTAQ). It is intended to aid regulated parties in reporting fleet average Greenhouse Gas (GHG), Corporate Average Fuel Consumption (CAFC) values and calculating AB&T fleet average credits for heavy-duty class 2b and 3 vehicles, ref. 40 CFR 86.1819-14 and 49 CFR 535.5(a), 535.6(a), 535.7. It contains EPA's recommended format for manufacturers to report to EPA their end-of-year GHG and CAFC calculations, credits and other information with respect to the implementation of the Phase 2 Greenhouse Gas Emissions and Fuel Efficiency Standards for Heavy-Duty Class 2b and 3 Pickup Trucks and Vans, ref. 81 FR 73478, October 25, 2016, including any subsequent revisions to those requirements. The use of this document is purely optional. This document does not in any way alter or waive the requirements in EPA regulations. Although the calculations and formulas provided in this document are intended to assist manufacturers in the implementation of EPA regulations, this document does not establish or change the legal rights or obligations of manufacturers or others in complying with EPA regulations, including 40 CFR 86.1865-12. If an error or other discrepancy is found in this document, including the calculation formulas, please contact your EPA certification team member. The regulations take precedence.
C4: Final HD Class 2b/3 CAFC/GHG Model Year Report - CO2 and FC Fleet Average Performance Calculations for Advanced Technology Vehicles (EVs, PHEVs, Fuel Cell Vehicles)
C5: Manufacturer | D5: ABC HD 2b/3 Truck Co
C6: Model Year | D6: 2022 | E6: =IF(D6='Adv Tech std calcs'!D6,"","ERROR--Model Year of Advanced Technology Standard calculation tab doesn't match the Model Year of the Advanced Technology Vehicle Fleet ave Calculation tab;") -> 
D8: AA. Total production volume | E8: BB. Fleet average CO2 (gpm) | F8: EE. Fleet average FC (gal/100 mile) | G8: Number of Subconfigurations | H8: Number of vehicles Actually tested | I8: Rate of production volume represented by test data (%)
C9: EVs: | D9: =SUM(R16:S16) -> 46944 | E9: =ASTM(AB16/D9,0) -> 0 | F9: =ASTM(AF16/D9,3) -> 0 | G9: =COUNT(H19:H21) -> 3 | H9: 0 | I9: 1 | J9: =IF(D9='Adv Tech std calcs'!D12,"","ERROR--Total EV production volume of the Advanced Technology Fleet std calculation tab doesn't match the Total EV production volume of the Advanced Technology Fleet ave Calculation tab;") -> 
C10: PHEVs: | D10: =SUM(R17:S17) -> 29432 | E10: =ASTM(AB17/D10,0) -> 51 | F10: =ASTM(AF17/D10,3) -> 0.574 | G10: =COUNT(H22:H25) -> 4 | H10: 1 | I10: 1 | J10: =IF(D10='Adv Tech std calcs'!D13,"","ERROR--Total PHEV production volume of the Advanced Technology Fleet std calculation tab doesn't match the Total PHEV production volume of the Advanced Technology Fleet ave Calculation tab;") -> 
C11: FCVs: | D11: =SUM(R18:S18) -> 2072 | E11: =ASTM(AB18/D11,0) -> 0 | F11: =ASTM(AF18/D11,3) -> 0 | G11: =COUNT(H26:H31) -> 6 | H11: 0 | I11: 1 | J11: =IF(D11='Adv Tech std calcs'!D14,"","ERROR--Total FCV production volume of the Advanced Technology Fleet std calculation tab doesn't match the Total FCV production volume of the Advanced Technology Fleet ave Calculation tab;") -> 
C13: Subconfiguration Information | R13: Production Volumes | V13: GHG Compliance Level+T9 (see instructions) | AE13: FC Compliance Level | AG13: GHG Credits | AK13: FC Credits | AM13: Test information | AS13: AO. In-use CO2 standard | AT13: AP. Comments
B14: B. Type of Advanced Technology Vehicle: Electric Vehicle (EV), Plug-In Hybrid Eectric Vehicle (PHEV) or Fuel Cell Vehicle (FCV) | C14: C. Truck Line Name and Description | D14: D. Test Group | E14: E. Engine Code | F14: F. Base level (test group/ transmission type) | G14: G. Config. Group | H14: H. Sub- config. Group Name | I14: I. 2 or 4 Wheel Drive | J14: J. Engine | K14: K. Trans Class | L14: L. Final Drive Ratio (front axle) | M14: M. Final Drive Ratio (rear axle) | N14: N. Road Load HP | O14: O. ETW (ALVW) | P14: P. Engine: Spark Ignition, Compression Ignition or Electric Vehicle/Fuel Cell Vehicle | Q14: Q. Conversion Factor | R14: R. Production volume under 40 CFR 86.1819-14(a) | S14: S. Production volume under 40 CFR 86.1819-14(j) (incomplete & sister vehicles) | T14: T. Loose Engine production volume under 86.1819-14(k)(8) (must be zero for this Advanced Technology Vehicle template) | U14: U. Sales fraction in DVC (config) | V14: V. RLC (subconfig) CO2 emissions | W14: W. DVC (config) CO2 emissions | X14: X. Sales fraction in Base Level | Y14: Y. Base Level CO2 emissions | Z14: Z. CO2 Value based on ADC? | AA14: AA. If ADC derived, Test vehicle ID and Conf. that is source of CO2base | AB14: AB. Vol x CO2 | AC14: AC. N2O FEL | AD14: AD. CH4 FEL | AE14: AE. BL Fuel Consumption | AF14: AF. Vol x FC | AG14: AG. CO2 Credits required for 150K N2O compliance | AH14: AH. CO2 Credits req'd for 150K CH4 compliance (Formula uses Global Warming Potential = 34) | AI14: AI. Off Cycle (Innovative Technology) 150K CO2 credits [Prior EPA approval required] | AK14: AJ. Innovative and Off Cycle 150K FC credits | AM14: AK. No. of RLC subconfigs covered by actual test | AN14: AL. Test Vehicle ID/Config. | AO14: AM. Test Number | AQ14: AN. Test Result (CO2) [For PHEVs, enter the composite city/hwy 150K CO2 values from the EPA HD 2b/3 PHEV Calculator; rounded to nearest 0.1 gpm]
O15: lbs. | Q15: gCO2/gal | V15: gpm | W15: gpm | Y15: gpm | AC15: gpm | AD15: gpm | AE15: gal/100-mile | AG15: megagrams | AH15: megagrams | AI15: gpm | AJ15: megagrams | AK15: gal/100 mile | AL15: gallons | AO15: CITY | AP15: HWY | AQ15: CITY | AR15: HWY
Q16: EVs: | R16: =SUM(R19:R21) -> 46944 | S16: =SUM(S19:S21) -> 0 | T16: =SUM(T19:T21) -> 0 | AA16: EVs: | AB16: =SUM(AB19:AB21) -> 0 | AF16: =SUM(AF19:AF21) -> 0 | AG16: =SUM(AG19:AG21) -> 0 | AH16: =SUM(AH19:AH21) -> 0 | AJ16: =SUM(AJ19:AJ21) -> 0 | AL16: =SUM(AL19:AL21) -> 0
Q17: PHEVs: | R17: =SUM(R22:R25) -> 29432 | S17: =SUM(S22:S25) -> 0 | T17: =SUM(T22:T25) -> 0 | AA17: PHEVs: | AB17: =SUM(AB22:AB25) -> 1501032 | AF17: =SUM(AF22:AF25) -> 16893.968 | AG17: =SUM(AG22:AG25) -> 0 | AH17: =SUM(AH22:AH25) -> 0 | AJ17: =SUM(AJ22:AJ25) -> 0 | AL17: =SUM(AL22:AL25) -> 0
Q18: FCVs: | R18: =SUM(R26:R31) -> 2072 | S18: =SUM(S26:S31) -> 0 | T18: =SUM(T26:T31) -> 0 | AA18: FCVs: | AB18: =SUM(AB26:AB31) -> 0 | AF18: =SUM(AF26:AF31) -> 0 | AG18: =SUM(AG26:AG31) -> 0 | AH18: =SUM(AH26:AH31) -> 0 | AJ18: =SUM(AJ26:AJ31) -> 0 | AL18: =SUM(AL26:AL31) -> 0
B19: EV | C19: 3500 Electric Pickup Trim Level A, B & C | D19: NXXXD00.0XXX | E19: XX-1 | F19: 1 | G19: 1 | H19: 1 | I19: 4wd | J19: 0.0L | K19: Auto(CVT) | L19: 13.26 | M19: 10.49 | N19: 28.6 | O19: 10000 | P19: EV/FCV-only | Q19: =IF(P19="","",IF(P19="Spark Ignition",8887,10180)) -> 10180 | R19: 28464 | S19: 0 | T19: 0 | U19: =ASTM(SUM(R19:S19)/SUM($R$19:$S$21),4) -> 0.6063 | V19: =ASTM(AQ19*0.55+AR19*0.45,1) -> 0 | W19: =ASTM(SUMPRODUCT(U19:U21,V19:V21),1) -> 0 | X19: 1 | Y19: =W19 -> 0 | Z19: No | AA19: NA | AB19: =SUM(R19:T21)*Y19 -> 0 | AC19: 0.05 | AD19: 0.05 | AE19: =ASTM(Y19/Q19*100,3) -> 0 | AF19: =SUM(R19:S21)*AE19 -> 0 | AG19: =ASTM(IF(AC19>0.05,-1*(AC19-0.05)*298*SUM(R19:S21)*150000/1000000,0),0) -> 0 | AH19: =ASTM(IF(AD19>0.05,-1*(AD19-0.05)*34*SUM(R19:S21)*150000/1000000,0),0) -> 0 | AI19: 0 | AJ19: =IF(AI19="",0, ASTM(AI19*SUM(R19:S19)*150000/1000000,0)) -> 0 | AK19: =IF(AI19="",0,AI19/Q19*100) -> 0 | AL19: =ASTM(AI19/Q19,4)*150000*SUM(R19:S19) -> 0 | AM19: NA | AN19: Not Applicable | AO19: NA | AP19: NA | AQ19: 0 | AR19: 0 | AS19: =ASTM(V19*1.1,0) -> 0 | AT19: Testing not req'd for EVs; ref 49 CFR 535.6(a)(3)(iii);
B20: EV | C20: 3500 Electric SUV Trim Levels A & B | H20: 2 | I20: 4wd | J20: 0.0L | K20: Auto(CVT) | L20: 13.26 | M20: 10.49 | N20: 28.1 | O20: 9500 | P20: EV/FCV-only | Q20: 10180 | R20: 14816 | S20: 0 | T20: 0 | U20: =ASTM(SUM(R20:S20)/SUM($R$19:$S$21),4) -> 0.3156 | V20: =ASTM(AQ20*0.55+AR20*0.45,1) -> 0 | Z20: No | AA20: NA | AI20: 0 | AJ20: =IF(AI20="",0, ASTM(AI20*SUM(R20:S20)*150000/1000000,0)) -> 0 | AK20: 0 | AL20: =ASTM(AI20/Q20,4)*150000*SUM(R20:S20) -> 0 | AM20: NA | AN20: Not Applicable | AO20: NA | AP20: NA | AQ20: 0 | AR20: 0 | AS20: =ASTM(V20*1.1,0) -> 0 | AT20: Testing not req'd for EVs; ref 49 CFR 535.6(a)(3)(iii);
B21: EV | C21: 3500 Electric SUV Trim Levels C | H21: 3 | I21: 4wd | J21: 0.0L | K21: Auto(CVT) | L21: 13.26 | M21: 10.49 | N21: 28.1 | O21: 9500 | P21: EV/FCV-only | Q21: 10180 | R21: 3664 | S21: 0 | T21: 0 | U21: =ASTM(SUM(R21:S21)/SUM($R$19:$S$21),4) -> 0.0781 | V21: =ASTM(AQ21*0.55+AR21*0.45,1) -> 0 | Z21: No | AA21: NA | AI21: 0 | AJ21: =IF(AI21="",0, ASTM(AI21*SUM(R21:S21)*150000/1000000,0)) -> 0 | AK21: 0 | AL21: =ASTM(AI21/Q21,4)*150000*SUM(R21:S21) -> 0 | AM21: NA | AN21: Not Applicable | AO21: NA | AP21: NA | AQ21: 0 | AR21: 0 | AS21: =ASTM(V21*1.1,0) -> 0 | AT21: Testing not req'd for EVs; ref 49 CFR 535.6(a)(3)(iii);
B22: PHEV | C22: 3500 SUV Trim Level A (PHEV) | D22: NXXXD02.0YYY | E22: YY-1 | F22: 2 | G22: 2 | H22: 4 | I22: 2wd | J22: 2.0L | K22: Auto (S8) | L22: 2.91 | M22: NA | N22: 26.4 | O22: 8500 | P22: Spark Ignition | Q22: 8887 | R22: 1656 | S22: 0 | T22: 0 | U22: =ASTM(SUM(R22:S22)/SUM($R$22:$S$25),4) -> 0.0563 | V22: =ASTM(AQ22*0.55+AR22*0.45,1) -> 51 | W22: =ASTM(SUMPRODUCT(U22:U25,V22:V25),1) -> 51 | X22: =ASTM(SUM(R22:R25)/SUM($R$22:$R$25),4) -> 1 | Y22: =W22 -> 51 | Z22: No | AA22: NA | AB22: =SUM(R22:S25)*Y22 -> 1501032 | AC22: 0.05 | AD22: 0.05 | AE22: =ASTM(Y22/Q22*100,3) -> 0.574 | AF22: =SUM(R22:S25)*AE22 -> 16893.968 | AG22: =ASTM(IF(AC22>0.05,-1*(AC22-0.05)*298*SUM(R22:S25)*150000/1000000,0),0) -> 0 | AH22: =ASTM(IF(AD22>0.05,-1*(AD22-0.05)*34*SUM(R22:S25)*150000/1000000,0),0) -> 0 | AI22: 0 | AJ22: =IF(AI22="",0, ASTM(AI22*SUM(R22:S22)*150000/1000000,0)) -> 0 | AK22: 0 | AL22: =ASTM(AI22/Q22,4)*150000*SUM(R22:S22) -> 0 | AM22: 4 | AN22: Not Applicable | AO22: NA | AP22: NA | AQ22: 22 | AR22: 86.5 | AS22: =ASTM(V22*1.1,0) -> 56 | AT22: Data substitution from worst case test vehicle
B23: PHEV | C23: 3500 SUV Trim Level B (PHEV) | H23: 5 | I23: 2wd | J23: 2.0L | K23: Auto (S8) | L23: 2.91 | M23: NA | N23: 28 | O23: 8500 | P23: Spark Ignition | Q23: 8887 | R23: 1424 | S23: 0 | T23: 0 | U23: =ASTM(SUM(R23:S23)/SUM($R$22:$S$25),4) -> 0.0484 | V23: =ASTM(AQ23*0.55+AR23*0.45,1) -> 51 | Z23: No | AA23: NA | AI23: 0 | AJ23: =IF(AI23="",0, ASTM(AI23*SUM(R23:S23)*150000/1000000,0)) -> 0 | AK23: 0 | AL23: =ASTM(AI23/Q23,4)*150000*SUM(R23:S23) -> 0 | AM23: 5 | AN23: Not Applicable | AO23: NA | AP23: NA | AQ23: 22 | AR23: 86.5 | AS23: =ASTM(V23*1.1,0) -> 56 | AT23: Data substitution from worst case test vehicle
B24: PHEV | C24: 3500 SUV Trim Level C, D, E (PHEV) | H24: 6 | I24: 2wd | J24: 2.0L | K24: Auto (S8) | L24: 2.91 | M24: NA | N24: 29.9 | O24: 9500 | P24: Spark Ignition | Q24: 8887 | R24: 20608 | S24: 0 | T24: 0 | U24: =ASTM(SUM(R24:S24)/SUM($R$22:$S$25),4) -> 0.7002 | V24: =ASTM(AQ24*0.55+AR24*0.45,1) -> 51 | Z24: No | AA24: NA | AI24: 0 | AJ24: =IF(AI24="",0, ASTM(AI24*SUM(R24:S24)*150000/1000000,0)) -> 0 | AK24: 0 | AL24: =ASTM(AI24/Q24,4)*150000*SUM(R24:S24) -> 0 | AM24: 6 | AN24: B299/03 | AO24: MXXXX0040829; MXXXX0040830; | AP24: MXXXX0040831; MXXXX0040832; | AQ24: 22 | AR24: 86.5 | AS24: =ASTM(V24*1.1,0) -> 56 | AT24: Tested worst case PHEV vehicle; City, Hwy composite CO2 values from HD 2b-3 PHEV Calculator
B25: PHEV | C25: 3500 SUV Trim Level F, G (PHEV) | H25: 7 | I25: 2wd | J25: 2.0L | K25: Auto (S8) | L25: 2.91 | M25: NA | N25: 28.5 | O25: 9000 | P25: Spark Ignition | Q25: 8887 | R25: 5744 | S25: 0 | T25: 0 | U25: =ASTM(SUM(R25:S25)/SUM($R$22:$S$25),4) -> 0.1952 | V25: =ASTM(AQ25*0.55+AR25*0.45,1) -> 51 | Z25: No | AA25: NA | AI25: 0 | AJ25: =IF(AI25="",0, ASTM(AI25*SUM(R25:S25)*150000/1000000,0)) -> 0 | AK25: 0 | AL25: =ASTM(AI25/Q25,4)*150000*SUM(R25:S25) -> 0 | AM25: 7 | AN25: Not Applicable | AO25: NA | AP25: NA | AQ25: 22 | AR25: 86.5 | AS25: =ASTM(V25*1.1,0) -> 56 | AT25: Data substitution from worst case test vehicle
B26: FCV | C26: 2500 Pickup-Trim Level A Ext. Cab (FCV) | D26: NXXXD00.0ZZZ | E26: ZZ-1 | F26: 3 | G26: 3 | H26: 12 | I26: 2wd | J26: 0.0L | K26: Auto(A1) | L26: NA | M26: 3.357 | N26: 25.5 | O26: 7500 | P26: EV/FCV-only | Q26: =IF(P26="","",IF(P26="Spark Ignition",8887,10180)) -> 10180 | R26: 80 | S26: 0 | T26: 0 | U26: =ASTM(SUM(R26:S26)/SUM($R$26:$S$31),4) -> 0.0386 | V26: =ASTM(AQ26*0.55+AR26*0.45,1) -> 0 | W26: =ASTM(SUMPRODUCT(U26:U31,V26:V31),1) -> 0 | X26: 1 | Y26: =W26 -> 0 | Z26: No | AA26: NA | AB26: =SUM(R26:S31)*Y26 -> 0 | AC26: 0.05 | AD26: 0.05 | AE26: =ASTM(Y26/Q26*100,3) -> 0 | AF26: =SUM(R26:S31)*AE26 -> 0 | AG26: =ASTM(IF(AC26>0.05,-1*(AC26-0.05)*298*SUM(R26:S29)*150000/1000000,0),0) -> 0 | AH26: =ASTM(IF(AD26>0.05,-1*(AD26-0.05)*34*SUM(R26:S29)*150000/1000000,0),0) -> 0 | AI26: 0 | AJ26: =IF(AI26="",0, ASTM(AI26*SUM(R26:S26)*150000/1000000,0)) -> 0 | AK26: =IF(AI26="",0,AI26/Q26*100) -> 0 | AL26: =ASTM(AI26/Q26,4)*150000*SUM(R26:S26) -> 0 | AM26: NA | AN26: Not Applicable | AO26: NA | AP26: NA | AQ26: 0 | AR26: 0 | AS26: =ASTM(V26*1.1,0) -> 0 | AT26: Testing not req'd for FCVs; ref 49 CFR 535.6(a)(3)(iii);
B27: FCV | C27: 2500 Pickup-Trim Level A Short Cab (FCV) | H27: 13 | I27: 2wd | J27: 0.0L | K27: Auto(A1) | L27: NA | M27: 3.357 | N27: 25.9 | O27: 7500 | P27: EV/FCV-only | Q27: 10180 | R27: 8 | S27: 0 | T27: 0 | U27: =ASTM(SUM(R27:S27)/SUM($R$26:$S$31),4) -> 0.0039 | V27: =ASTM(AQ27*0.55+AR27*0.45,1) -> 0 | Z27: No | AA27: NA | AI27: 0 | AJ27: =IF(AI27="",0, ASTM(AI27*SUM(R27:S27)*150000/1000000,0)) -> 0 | AK27: 0 | AL27: =ASTM(AI27/Q27,4)*150000*SUM(R27:S27) -> 0 | AM27: NA | AN27: Not Applicable | AO27: NA | AP27: NA | AQ27: 0 | AR27: 0 | AS27: =ASTM(V27*1.1,0) -> 0 | AT27: Testing not req'd for FCVs; ref 49 CFR 535.6(a)(3)(iii);
B28: FCV | C28: 2500 Pickup-Trim Level A 4-door Cab (FCV) | H28: 14 | I28: 2wd | J28: 0.0L | K28: Auto(A1) | L28: NA | M28: 3.357 | N28: 24.9 | O28: 8000 | P28: EV/FCV-only | Q28: 10180 | R28: 32 | S28: 0 | T28: 0 | U28: =ASTM(SUM(R28:S28)/SUM($R$26:$S$31),4) -> 0.0154 | V28: =ASTM(AQ28*0.55+AR28*0.45,1) -> 0 | Z28: No | AA28: NA | AI28: 0 | AJ28: =IF(AI28="",0, ASTM(AI28*SUM(R28:S28)*150000/1000000,0)) -> 0 | AK28: 0 | AL28: =ASTM(AI28/Q28,4)*150000*SUM(R28:S28) -> 0 | AM28: NA | AN28: Not Applicable | AO28: NA | AP28: NA | AQ28: 0 | AR28: 0 | AS28: =ASTM(V28*1.1,0) -> 0 | AT28: Testing not req'd for FCVs; ref 49 CFR 535.6(a)(3)(iii);
B29: FCV | C29: 2500 Pickup-Trim Level B 4-door Cab (FCV) | H29: 15 | I29: 2wd | J29: 0.0L | K29: Auto(A1) | L29: NA | M29: 3.357 | N29: 25.6 | O29: 8000 | P29: EV/FCV-only | Q29: 10180 | R29: 16 | S29: 0 | T29: 0 | U29: =ASTM(SUM(R29:S29)/SUM($R$26:$S$31),4) -> 0.0077 | V29: =ASTM(AQ29*0.55+AR29*0.45,1) -> 0 | Z29: No | AA29: NA | AI29: 0 | AJ29: =IF(AI29="",0, ASTM(AI29*SUM(R29:S29)*150000/1000000,0)) -> 0 | AK29: 0 | AL29: =ASTM(AI29/Q29,4)*150000*SUM(R29:S29) -> 0 | AM29: NA | AN29: Not Applicable | AO29: NA | AP29: NA | AQ29: 0 | AR29: 0 | AS29: =ASTM(V29*1.1,0) -> 0 | AT29: Testing not req'd for FCVs; ref 49 CFR 535.6(a)(3)(iii);
B30: FCV | C30: 2500 Pickup-Trim Level B Ext. Cab (FCV) | H30: 16 | I30: 2wd | J30: 0.0L | K30: Auto(A1) | L30: NA | M30: 3.357 | N30: 26 | O30: 8000 | P30: EV/FCV-only | Q30: 10180 | R30: 8 | S30: 0 | T30: 0 | U30: =ASTM(SUM(R30:S30)/SUM($R$26:$S$31),4) -> 0.0039 | V30: =ASTM(AQ30*0.55+AR30*0.45,1) -> 0 | Z30: No | AA30: NA | AI30: 0 | AJ30: =IF(AI30="",0, ASTM(AI30*SUM(R30:S30)*150000/1000000,0)) -> 0 | AK30: 0 | AL30: =ASTM(AI30/Q30,4)*150000*SUM(R30:S30) -> 0 | AM30: NA | AN30: Not Applicable | AO30: NA | AP30: NA | AQ30: 0 | AR30: 0 | AS30: =ASTM(V30*1.1,0) -> 0 | AT30: Testing not req'd for FCVs; ref 49 CFR 535.6(a)(3)(iii);
B31: FCV | C31: 2500 Pickup-Trim Level A 4-door Cab (FCV) | H31: 17 | I31: 4wd | J31: 0.0L | K31: Auto(A1) | L31: NA | M31: 3.357 | N31: 26.4 | O31: 8000 | P31: EV/FCV-only | Q31: 10180 | R31: 1928 | S31: 0 | T31: 0 | U31: =ASTM(SUM(R31:S31)/SUM($R$26:$S$31),4) -> 0.9305 | V31: =ASTM(AQ31*0.55+AR31*0.45,1) -> 0 | Z31: No | AA31: NA | AI31: 0 | AJ31: =IF(AI31="",0, ASTM(AI31*SUM(R31:S31)*150000/1000000,0)) -> 0 | AK31: 0 | AL31: =ASTM(AI31/Q31,4)*150000*SUM(R31:S31) -> 0 | AM31: NA | AN31: Not Applicable | AO31: NA | AP31: NA | AQ31: 0 | AR31: 0 | AS31: =ASTM(V31*1.1,0) -> 0 | AT31: Testing not req'd for FCVs; ref 49 CFR 535.6(a)(3)(iii);

Sheet HFC Emissions
B1: Purpose and Scope of this Guidance Document
B2: This document was prepared by EPA's Office of Transportation and Air Quality (OTAQ). It is intended to aid regulated parties in reporting fleet average Greenhouse Gas (GHG), Corporate Average Fuel Consumption (CAFC) values and calculating AB&T fleet average credits for heavy-duty class 2b and 3 vehicles, ref. 40 CFR 86.1819-14 and 49 CFR 535.5(a), 535.6(a), 535.7. It contains EPA's recommended format for manufacturers to report to EPA their end-of-year GHG and CAFC calculations, credits and other information with respect to the implementation of the Phase 2 Greenhouse Gas Emissions and Fuel Efficiency Standards for Heavy-Duty Class 2b and 3 Pickup Trucks and Vans, ref. 81 FR 73478, October 25, 2016, including any subsequent revisions to those requirements. The use of this document is purely optional. This document does not in any way alter or waive the requirements in EPA regulations. Although the calculations and formulas provided in this document are intended to assist manufacturers in the implementation of EPA regulations, this document does not establish or change the legal rights or obligations of manufacturers or others in complying with EPA regulations, including 40 CFR 86.1865-12. If an error or other discrepancy is found in this document, including the calculation formulas, please contact your EPA certification team member. The regulations take precedence.
B4: End-Model Year Report HFC LEAKAGE SCORE TABLE (Heavy-Duty Class 2b/3 Vehicles including EVs, PHEVs, and Fuel Cell Vehicles)
B5: Manufacturer | C5: ABC HD 2b/3 Truck Co. | I5: Total Production Volume
B6: Model Year | C6: 2022
I8: =SUM(I12:I22) -> 158368
B10: TEST GROUP NAME | C10: ENGINE CODE | D10: DIVISION NAME | E10: CARLINE | F10: A/C System Information | K10: A/C Leakage Rate
F11: A/C system number | G11: Refrigerant | H11: Refrigerant GWP, if other than R134a | I11: Production Volume | J11: Refrigerant Capacity (g) | K11: Total System HFC Emission Rate (g/year) | L11: Total System HFC Percent Leakage (%/year)
B12: NXXXD02.5XXX | C12: AA5 | D12: ABC Truck Co. | E12: 1500 Cargo VAN | F12: 1 | G12: R134a | H12: n.a | I12: 43280 | J12: 850 | K12: 11.2 | L12: =ASTM(K12/J12,4) -> 0.0132
B13: NXXXD02.5XXX | C13: AA5 | D13: ABC Truck Co. | E13: 2500 Cargo VAN
B14: NXXXD02.5XXX | C14: AA5 | D14: ABC Truck Co. | E14: 3500 Passenger VAN | F14: 2 | G14: R134a | H14: n.a | I14: 3664 | J14: 1200 | K14: 13 | L14: =ASTM(K14/J14,4) -> 0.0108
B15: NXXXD03.6YYY | C15: AA6 | D15: ABC Truck Co. | E15: 2500 Cargo VAN | F15: 3 | G15: R134a | H15: n.a | I15: 12680 | J15: 850 | K15: 12.7 | L15: =ASTM(K15/J15,4) -> 0.0149
B16: NXXXD03.6YYY | C16: AA6 | D16: ABC Truck Co. | E16: 3500 Cargo VAN
B17: NXXXD03.6YYY | C17: AA6 | D17: ABC Truck Co. | E17: 3500 Passenger VAN | F17: 4 | G17: R134a | H17: n.a | I17: 16752 | J17: 1200 | K17: 16.2 | L17: =ASTM(K17/J17,4) -> 0.0135
B18: NXXXD03.6YYY | C18: AA2 | D18: ABC Truck Co. | E18: 2500 Pickup 2WD/4WD | F18: 5 | G18: R134a | H18: n.a | I18: 1472 | J18: 800 | K18: 11.7 | L18: =ASTM(K18/J18,4) -> 0.0146
B19: NXXXD04.0ZZZ | C19: AA-10, AA-20 | D19: ABC Truck Co. | E19: 2500 Pickup 2WD/4WD | F19: 6 | G19: R134a | H19: n.a | I19: 2072 | J19: 800 | K19: 11.8 | L19: =ASTM(K19/J19,4) -> 0.0148
B20: NXXXD00.0XXX | C20: XX-1 | D20: ABC Truck Co. | E20: 3500 Electric Pickup/SUV | F20: 7 | G20: R1234-YF | H20: 4 | I20: 46944 | J20: 680 | K20: 9.1 | L20: =ASTM(K20/J20,4) -> 0.0134
B21: NXXXD02.0YYY | C21: YY-1 | D21: ABC Truck Co. | E21: 3500 SUV (PHEV) | F21: 8 | G21: R1234-YF | H21: 4 | I21: 29432 | J21: 600 | K21: 8 | L21: =ASTM(K21/J21,4) -> 0.0133
B22: NXXXD00.0ZZZ | C22: ZZ-1 | D22: ABC Truck Co. | E22: 2500 Pickup (Fuel Cell Veh) | F22: 9 | G22: R1234-YF | H22: 4 | I22: 2072 | J22: 800 | K22: 11.2 | L22: =ASTM(K22/J22,4) -> 0.014
B24: Compliance Statement (Select "Yes" or "No" in cell B20):
B25: [Yes] | C25: Each A/C System complies with HFC Leakage Standard of < 11.0 grams/year or < 1.50% per year (whichever is greater), Ref. 40 CFR 86.1819-14(h) ;

Sheet ADCO2 Calcs
B1: Purpose and Scope of this Guidance Document
K2: This document was prepared by EPA's Office of Transportation and Air Quality (OTAQ). It is intended to aid regulated parties in reporting fleet average Greenhouse Gas (GHG), Corporate Average Fuel Consumption (CAFC) values and calculating AB&T fleet average credits for heavy-duty class 2b and 3 vehicles, ref. 40 CFR 86.1819-14 and 49 CFR 535.5(a), 535.6(a), 535.7. It contains EPA's recommended format for manufacturers to report to EPA their end-of-year GHG and CAFC calculations, credits and other information with respect to the implementation of the Phase 2 Greenhouse Gas Emissions and Fuel Efficiency Standards for Heavy-Duty Class 2b and 3 Pickup Trucks and Vans, ref. 81 FR 73478, October 25, 2016, including any subsequent revisions to those requirements. The use of this document is purely optional. This document does not in any way alter or waive the requirements in EPA regulations. Although the calculations and formulas provided in this document are intended to assist manufacturers in the implementation of EPA regulations, this document does not establish or change the legal rights or obligations of manufacturers or others in complying with EPA regulations, including 40 CFR 86.1865-12. If an error or other discrepancy is found in this document, including the calculation formulas, please contact your EPA certification team member. The regulations take precedence.
B4: 2018MY HD GHG ADCO2 Calculation sheet
C5: Subconfiguration Information | O5: GHG Compliance Level+T9 (see instructions) | T5: ADCO2 Baseline test vehicle | AE5: New vehicle | AJ5: Calculation results ADCO2
B6: Spread sheets "Fleet ave calculation" Cell no. ADO2 | C6: A1. Truck Line Name and Description | D6: Test Group | E6: Engine Code | F6: Base level (test group/ transmission type) | G6: Config. Group | H6: A2. Sub- config. Group Name | I6: B. 2 or 4 Wheel Drive | J6: C. Engine | K6: D. Trans Class | L6: E. Final Drive Ratio | M6: F. Road Load HP | N6: J. ETW | O6: W. RLC CO2 emissions | P6: X. CO2 Value based on ADC? | Q6: Y. If ADC derived, Test vehicle ID and Conf. that is source of CO2base | R6: No. of RLC covered by atual test | T6: Test Vehicle ID/Config. | U6: Test Number | W6: Test Result (CO2) | Z6: F0 | AA6: F1 | AB6: F2 | AC6: If | AD6: ETW | AE6: F0 | AF6: F1 | AG6: F2 | AH6: If | AI6: ETW
N7: lbs. | O7: gpm | U7: CITY | V7: HWY | W7: CITY | X7: HWY | Y7: COMB.
B9: T20 | C9: 2500 Pickup-Trim Level A Short Cab | D9: NXXXD03.6YYY | E9: AA2 | F9: 2 | G9: 3 | H9: 8 | I9: 2wd | J9: 3.6L | K9: L8 | L9: 3.357 | M9: 21.2 | N9: 7000 | O9: 439 | P9: Yes | Q9: B022/00 | R9: ADC | T9: B022/00 | U9: LXXX10039452 | V9: LXXX10039453 | W9: 549 | X9: 304 | Y9: =ASTM(0.55*W9+0.45*X9,1) -> 438.8 | Z9: 63.3 | AA9: 0.2677 | AB9: 0.03348 | AC9: 3.357 | AD9: 7500 | AE9: 58.21 | AF9: 0.25 | AG9: 0.03521 | AH9: 3.357 | AI9: 7000 | AJ9: =ASTM(Y9+2.18*(AE9-Z9)+37.4*(AF9-AA9)+2257*(AG9-AB9)+189*(AH9-AC9)+0.0222*(AI9-AD9),0) -> 420
B10: T21 | C10: 2500 Pickup-Trim Level A 4-door Cab | H10: 9 | I10: 2wd | J10: 3.6L | K10: L8 | L10: 3.357 | M10: 20.7 | N10: 7500 | O10: 439 | P10: Yes | Q10: B022/00 | R10: ADC | T10: B022/00 | U10: LXXX10039452 | V10: LXXX10039453 | W10: 549 | X10: 304 | Y10: =ASTM(0.55*W10+0.45*X10,1) -> 438.8 | Z10: 63.3 | AA10: 0.2677 | AB10: 0.03348 | AC10: 3.357 | AD10: 7500 | AE10: 61.32 | AF10: 0.2593 | AG10: 0.03242 | AH10: 3.357 | AI10: 7500 | AJ10: =ASTM(Y10+2.18*(AE10-Z10)+37.4*(AF10-AA10)+2257*(AG10-AB10)+189*(AH10-AC10)+0.0222*(AI10-AD10),0) -> 432
B11: T26 | C11: 2500 Pickup-Trim Level A Short Cab | D11: NXXXD04.0ZZZ | E11: AA-10 | F11: 3 | G11: 4 | H11: 13 | I11: 2wd | J11: 4.0L-Turbo | K11: L6 | L11: 3.916 | M11: 23.9 | N11: 7500 | O11: 427 | P11: Yes | Q11: G12/00 | R11: ADC | T11: G12/00 | U11: LXXX10045801 | V11: LXXX10045802 | W11: 537 | X11: 293 | Y11: =ASTM(0.55*W11+0.45*X11,1) -> 427.2 | Z11: 74.05 | AA11: 0.3016 | AB11: 0.03315 | AC11: 3.916 | AD11: 8000 | AE11: 70.96 | AF11: 0.3728 | AG11: 0.03587 | AH11: 3.916 | AI11: 7500 | AJ11: =ASTM(Y11+2.18*(AE11-Z11)+37.4*(AF11-AA11)+2257*(AG11-AB11)+189*(AH11-AC11)+0.0222*(AI11-AD11),0) -> 418
B12: T29 | C12: 2500 Pickup-Trim Level B Extended Cab | H12: 16 | I12: 2wd | J12: 4.0L-Turbo | K12: L6 | L12: 3.916 | M12: 24 | N12: 8000 | O12: 434 | P12: Yes | Q12: G57/03 | R12: ADC | T12: G57/03 | U12: LXXX10045815 | V12: LXXX10045816 | W12: 546 | X12: 297 | Y12: =ASTM(0.55*W12+0.45*X12,1) -> 434 | Z12: 74.33 | AA12: 0.3776 | AB12: 0.03349 | AC12: 3.916 | AD12: 8000 | AE12: 74.33 | AF12: 0.3776 | AG12: 0.03477 | AH12: 3.916 | AI12: 8000 | AJ12: =ASTM(Y12+2.18*(AE12-Z12)+37.4*(AF12-AA12)+2257*(AG12-AB12)+189*(AH12-AC12)+0.0222*(AI12-AD12),0) -> 437
